Department Family,Entity,Date,Expense Type,Expense Area,Supplier,Transaction Number,Amount In Sterling
UK Trade and Investment,UK Trade and Investment Programme,6/1/2010,Basic Grants,International Sectors Group - UK Trade and Investments,MISSION PERFORMANCE LTD,132305,"1,000.00"
UK Trade and Investment,UK Trade and Investment Programme,6/1/2010,Salaries and Wages,Marketing Directorate - UK Trade and Investments,JAMIE OLIVER,132330,"1,000.00"
UK Trade and Investment,UK Trade and Investment Programme,6/1/2010,Travel and Subsistence O'seas,Regional Directorate - UK Trade and Investments,C SALT & N GIBBERSON T/A PENSTAMPS,132338,750
UK Trade and Investment,UK Trade and Investment Programme,6/1/2010,Travel and Subsistence O'seas,Regional Directorate - UK Trade and Investments,GOOD4BUSINESS LTD,132313,500
UK Trade and Investment,UK Trade and Investment Programme,6/1/2010,Training - General,Regional Directorate - UK Trade and Investments,JOHN HARRISON T/A INTERNATIONAL TRADE TRAINING & CONSULTANCY,132317,"1,281.50"
UK Trade and Investment,UK Trade and Investment Programme,6/1/2010,Training - General,Regional Directorate - UK Trade and Investments,JOHN HARRISON T/A INTERNATIONAL TRADE TRAINING & CONSULTANCY,132317,"1,009.00"
UK Trade and Investment,UK Trade and Investment Programme,6/1/2010,Event Management,International Sectors Group - UK Trade and Investments,VENN GROUP LTD,132314,"2,499.99"
UK Trade and Investment,UK Trade and Investment Programme,6/1/2010,Event Management,International Sectors Group - UK Trade and Investments,VENN GROUP LTD,132328,"2,499.99"
UK Trade and Investment,UK Trade and Investment Programme,6/1/2010,Advertising,Regional Directorate - UK Trade and Investments,TEN ALPS COMMUNICATIONS LTD T/A TEN ALPS PUBLISHING,132316,650
UK Trade and Investment,UK Trade and Investment Programme,6/1/2010,Sponsorship,Regional Directorate - UK Trade and Investments,THE STRATFORD,132299,750
UK Trade and Investment,UK Trade and Investment Programme,6/1/2010,Promotional Materials,Marketing Directorate - UK Trade and Investments,AWARE PROMOTIONAL MERCHANDISE LTD,132303,"1,198.50"
UK Trade and Investment,UK Trade and Investment Programme,6/1/2010,Photographic Services,Marketing Directorate - UK Trade and Investments,CRUZ IT LTD T/A CIT DIGITAL,132329,"3,000.00"
UK Trade and Investment,UK Trade and Investment Programme,6/1/2010,Design Services,Regional Directorate - UK Trade and Investments,CHRISTINA SHINGLER,132321,"1,500.00"
UK Trade and Investment,UK Trade and Investment Programme,6/1/2010,Scheme Management Charges,Defence and Security Organisation - UK Trade and Investments,AFRICAN BUSINESS ACCESS UK LTD,132334,"10,961.07"
UK Trade and Investment,UK Trade and Investment Programme,6/1/2010,Scheme Management Charges,Regional Directorate - UK Trade and Investments,SOUTH EAST TRADE & INVESTMENT LTD,132333,"268,855.09"
UK Trade and Investment,UK Trade and Investment Programme,6/1/2010,Other IT Services,IT and Finance Group - UK Trade and Investments,FUJITSU SERVICES LTD,132190,"4,266.00"
UK Trade and Investment,UK Trade and Investment Programme,6/1/2010,Development Cost - Website (AUC) - Clearing Account,Strategy and Human Resources Group - UK Trade and Investments,STOPGAP LTD,132341,"3,328.94"
UK Trade and Investment,UK Trade and Investment Programme,6/1/2010,Development Cost - Website (AUC) - Clearing Account,Strategy and Human Resources Group - UK Trade and Investments,STOPGAP LTD,132340,"3,052.47"
UK Trade and Investment,UK Trade and Investment Programme,6/1/2010,Basic Grants,International Sectors Group - UK Trade and Investments,AUBREY & SUZANNE ANDREWS t/a MISERDEN TEXELS,132306,"1,000.00"
UK Trade and Investment,UK Trade and Investment Programme,6/1/2010,Sponsors Grants,International Sectors Group - UK Trade and Investments,AMUSEMENT & LEISURE EQUIPMENT SUPPLIERS (ALES UK),132176,"12,185.00"
UK Trade and Investment,UK Trade and Investment Programme,6/1/2010,Travel and Subsistence O'seas,Regional Directorate - UK Trade and Investments,EXCLUSIVE COLLECTIONS LTD,132337,600
UK Trade and Investment,UK Trade and Investment Programme,6/1/2010,IT Managed Service Contracts,Marketing Directorate - UK Trade and Investments,CAKE SOLUTIONS LTD,132310,"1,152.00"
UK Trade and Investment,UK Trade and Investment Programme,6/1/2010,Basic Grants,International Sectors Group - UK Trade and Investments,BRITISH CONTRACT FURNISHING ASSOCIATION,132308,"4,000.00"
UK Trade and Investment,UK Trade and Investment Programme,6/1/2010,Sponsors Grants,International Sectors Group - UK Trade and Investments,BRITISH CONTRACT FURNISHING ASSOCIATION,132309,940
UK Trade and Investment,UK Trade and Investment Programme,6/1/2010,Event Management,Business Group - UK Trade and Investments,PARTNERSHIP SOURCING LTD,132169,750
UK Trade and Investment,UK Trade and Investment Programme,6/1/2010,Event Management,Business Group - UK Trade and Investments,PARTNERSHIP SOURCING LTD,132169,-750
UK Trade and Investment,UK Trade and Investment Programme,6/1/2010,Event Management,Business Group - UK Trade and Investments,PARTNERSHIP SOURCING LTD,132169,750
UK Trade and Investment,UK Trade and Investment Programme,6/1/2010,Advertising,Marketing Directorate - UK Trade and Investments,ROXBY MEDIA,132315,"3,500.00"
UK Trade and Investment,UK Trade and Investment Programme,6/2/2010,Travel and Subsistence O'seas,Regional Directorate - UK Trade and Investments,A C COSSOR & SON (SURGICAL) LTD,132347,500
UK Trade and Investment,UK Trade and Investment Programme,6/2/2010,Travel and Subsistence O'seas,Strategy and Human Resources Group - UK Trade and Investments,FOREIGN AND COMMONWEALTH OFFICE (FCO),131998,"5,892.36"
UK Trade and Investment,UK Trade and Investment Programme,6/2/2010,Travel and Subsistence O'seas,Strategy and Human Resources Group - UK Trade and Investments,Various Travel Costs for India Visit,132343,"3,598.55"
UK Trade and Investment,UK Trade and Investment Programme,6/2/2010,Event Management,International Sectors Group - UK Trade and Investments,ROY LEIGHTON,132363,"1,085.35"
UK Trade and Investment,UK Trade and Investment Programme,6/2/2010,Event Management,International Sectors Group - UK Trade and Investments,MOTORSPORT INDUSTRY ASSOCIATION [MIA],132367,"18,000.00"
UK Trade and Investment,UK Trade and Investment Programme,6/2/2010,Event Management,International Sectors Group - UK Trade and Investments,LONDON INTERNATIONAL EXHIBITION CENTRE PLC,132356,"14,981.25"
UK Trade and Investment,UK Trade and Investment Programme,6/2/2010,Stand Construction Costs,Defence and Security Organisation - UK Trade and Investments,EDGE EXHIBITION DESIGN LTD,132353,"50,883.00"
UK Trade and Investment,UK Trade and Investment Programme,6/2/2010,Stand Construction Costs,Defence and Security Organisation - UK Trade and Investments,EDGE EXHIBITION DESIGN LTD,132352,"8,928.00"
UK Trade and Investment,UK Trade and Investment Programme,6/2/2010,Scheme Management Charges,Business Group - UK Trade and Investments,PERA INNOVATION LTD,132359,"24,089.66"
UK Trade and Investment,UK Trade and Investment Programme,6/2/2010,Development Cost - Website (AUC) - Clearing Account,Strategy and Human Resources Group - UK Trade and Investments,VENN GROUP LTD,132320,940
UK Trade and Investment,UK Trade and Investment Programme,6/2/2010,Travel and Subsistence O'seas,Regional Directorate - UK Trade and Investments,INNOVA BIOSCIENCES LTD,132348,500
UK Trade and Investment,UK Trade and Investment Programme,6/2/2010,Basic Grants,International Sectors Group - UK Trade and Investments,BRITISH MARINE EQUIPMENT ASSOCIATION,132365,"8,400.00"
UK Trade and Investment,UK Trade and Investment Programme,6/2/2010,Sponsors Grants,International Sectors Group - UK Trade and Investments,BRITISH MARINE EQUIPMENT ASSOCIATION,132366,"1,410.00"
UK Trade and Investment,UK Trade and Investment Programme,6/2/2010,Training - General,Regional Directorate - UK Trade and Investments,LEARNING IMPACT INTERNATIONAL LTD,132364,"2,439.00"
UK Trade and Investment,UK Trade and Investment Programme,6/3/2010,Fees and Charges,Regional Directorate - UK Trade and Investments,MCS GLOBAL LTD,131622,852.17
UK Trade and Investment,UK Trade and Investment Programme,6/3/2010,Fees and Charges,Regional Directorate - UK Trade and Investments,MCS GLOBAL LTD,131622,852.17
UK Trade and Investment,UK Trade and Investment Programme,6/3/2010,Fees and Charges,Regional Directorate - UK Trade and Investments,MCS GLOBAL LTD,131622,-852.17
UK Trade and Investment,UK Trade and Investment Programme,6/3/2010,Basic Grants,International Sectors Group - UK Trade and Investments,BRANDON MEDICAL CO LTD,132307,"1,000.00"
UK Trade and Investment,UK Trade and Investment Programme,6/3/2010,Basic Grants,International Sectors Group - UK Trade and Investments,BIRMINGHAM CHAMBER OF COMMERCE & INDUSTRY,132374,"18,000.00"
UK Trade and Investment,UK Trade and Investment Programme,6/3/2010,Sponsors Grants,International Sectors Group - UK Trade and Investments,BIRMINGHAM CHAMBER OF COMMERCE & INDUSTRY,132376,"10,340.00"
UK Trade and Investment,UK Trade and Investment Programme,6/3/2010,Sponsors Grants,International Sectors Group - UK Trade and Investments,BIRMINGHAM CHAMBER OF COMMERCE & INDUSTRY,132376,"5,875.00"
UK Trade and Investment,UK Trade and Investment Programme,6/3/2010,Sponsors Grants,International Sectors Group - UK Trade and Investments,BIRMINGHAM CHAMBER OF COMMERCE & INDUSTRY,132376,"5,640.00"
UK Trade and Investment,UK Trade and Investment Programme,6/3/2010,Salaries and Wages,Marketing Directorate - UK Trade and Investments,VENN GROUP LTD,132288,804.92
UK Trade and Investment,UK Trade and Investment Programme,6/3/2010,Secondment costs,International Sectors Group - UK Trade and Investments,SCOTT WILSON LTD,132372,"8,786.65"
UK Trade and Investment,UK Trade and Investment Programme,6/3/2010,Training - General,Regional Directorate - UK Trade and Investments,GWE BUSINESS WEST LTD,132396,"5,453.00"
UK Trade and Investment,UK Trade and Investment Programme,6/3/2010,Event Management,International Sectors Group - UK Trade and Investments,TVET UK LTD,132402,"4,000.00"
UK Trade and Investment,UK Trade and Investment Programme,6/3/2010,Venue Hire,International Sectors Group - UK Trade and Investments,SODEXO LTD T/A SODEXO PRESTIGE,132373,"1,029.02"
UK Trade and Investment,UK Trade and Investment Programme,6/3/2010,Sponsorship,Regional Directorate - UK Trade and Investments,INSTITUTE OF DIRECTORS,132397,"2,500.00"
UK Trade and Investment,UK Trade and Investment Programme,6/3/2010,Authoring and Copywriting Costs,Marketing Directorate - UK Trade and Investments,LORRAINE SHAH,132369,775
UK Trade and Investment,UK Trade and Investment Programme,6/3/2010,Scheme Management Charges,International Group - UK Trade and Investments,LEO G FAULKNER,132399,548.9
UK Trade and Investment,UK Trade and Investment Programme,6/3/2010,Scheme Management Charges,Regional Directorate - UK Trade and Investments,WEBSTER & HORSFALL LTD,132185,504.61
UK Trade and Investment,UK Trade and Investment Programme,6/3/2010,Scheme Management Charges,Regional Directorate - UK Trade and Investments,WEBSTER & HORSFALL LTD,132185,624.99
UK Trade and Investment,UK Trade and Investment Programme,6/3/2010,Scheme Management Charges,Regional Directorate - UK Trade and Investments,PRECISION NAVIGATION LTD,132220,"1,069.00"
UK Trade and Investment,UK Trade and Investment Programme,6/3/2010,Scheme Management Charges,Regional Directorate - UK Trade and Investments,PROMOVEO TECHNOLOGY LTD,132217,"1,500.00"
UK Trade and Investment,UK Trade and Investment Programme,6/3/2010,Scheme Management Charges,Regional Directorate - UK Trade and Investments,GWE BUSINESS WEST LTD,132396,"101,805.65"
UK Trade and Investment,UK Trade and Investment Programme,6/3/2010,Scheme Management Charges,Regional Directorate - UK Trade and Investments,JOHN R BOONE LTD,132146,"1,125.00"
UK Trade and Investment,UK Trade and Investment Programme,6/3/2010,Scheme Management Charges,Regional Directorate - UK Trade and Investments,NIKO COATINGS LTD,132184,583.48
UK Trade and Investment,UK Trade and Investment Programme,6/3/2010,Scheme Management Charges,Regional Directorate - UK Trade and Investments,NIKO COATINGS LTD,132184,653.96
UK Trade and Investment,UK Trade and Investment Programme,6/3/2010,Scheme Management Charges,Regional Directorate - UK Trade and Investments,BURNLEY TELEMATICS AND TELEWORKING CENTRE LTD,132147,"1,327.84"
UK Trade and Investment,UK Trade and Investment Programme,6/3/2010,Scheme Management Charges,Regional Directorate - UK Trade and Investments,THE EVEN KEEL PROJECT LTD,132182,"1,500.00"
UK Trade and Investment,UK Trade and Investment Programme,6/3/2010,Scheme Management Charges,Regional Directorate - UK Trade and Investments,ESTELLE EAR PIERCING LTD,132183,"1,500.00"
UK Trade and Investment,UK Trade and Investment Programme,6/3/2010,Scheme Management Charges,Regional Directorate - UK Trade and Investments,TELEVISION JUNCTION LTD,132200,551.5
UK Trade and Investment,UK Trade and Investment Programme,6/3/2010,Car Hire and Leasing,Defence and Security Organisation - UK Trade and Investments,GOVERNMENT CAR AND DESPATCH AGENCY,132393,"3,285.55"
UK Trade and Investment,UK Trade and Investment Programme,6/4/2010,Basic Grants,International Sectors Group - UK Trade and Investments,ANDROMEDA TRADING LTD,132411,"1,000.00"
UK Trade and Investment,UK Trade and Investment Programme,6/4/2010,Basic Grants,International Sectors Group - UK Trade and Investments,COSTELLO MEDICAL CONSULTING LTD,132419,"1,000.00"
UK Trade and Investment,UK Trade and Investment Programme,6/4/2010,Basic Grants,International Sectors Group - UK Trade and Investments,CONCEPT TECHNICAL SERVICES LTD T/A ORSON EQUIPMENT,132425,"1,000.00"
UK Trade and Investment,UK Trade and Investment Programme,6/4/2010,Basic Grants,International Sectors Group - UK Trade and Investments,HAIR-RAISERS LTD,132417,"1,000.00"
UK Trade and Investment,UK Trade and Investment Programme,6/4/2010,Basic Grants,International Sectors Group - UK Trade and Investments,MAGNA INDUSTRIALS LTD,132420,"1,000.00"
UK Trade and Investment,UK Trade and Investment Programme,6/4/2010,Basic Grants,International Sectors Group - UK Trade and Investments,PERCIVAL AVIATION LTD,132426,"1,000.00"
UK Trade and Investment,UK Trade and Investment Programme,6/4/2010,Travel and Subsistence O'seas,Defence and Security Organisation - UK Trade and Investments,FOREIGN AND COMMONWEALTH OFFICE (FCO),131413,"3,910.57"
UK Trade and Investment,UK Trade and Investment Programme,6/4/2010,Travel and Subsistence O'seas,Regional Directorate - UK Trade and Investments,23RED LTD,132421,750
UK Trade and Investment,UK Trade and Investment Programme,6/4/2010,Travel and Subsistence O'seas,Regional Directorate - UK Trade and Investments,STAINLESS FITTINGS LTD,132415,750
UK Trade and Investment,UK Trade and Investment Programme,6/4/2010,Travel and Subsistence O'seas,Regional Directorate - UK Trade and Investments,HYDROBOLT LTD,132413,500
UK Trade and Investment,UK Trade and Investment Programme,6/4/2010,Entertainment O'Seas,International Group - UK Trade and Investments,FOREIGN AND COMMONWEALTH OFFICE (FCO),131411,"1,479.80"
UK Trade and Investment,UK Trade and Investment Programme,6/4/2010,Entertainment O'Seas,International Group - UK Trade and Investments,FOREIGN AND COMMONWEALTH OFFICE (FCO),131411,"3,251.63"
UK Trade and Investment,UK Trade and Investment Programme,6/4/2010,Event Management,International Group - UK Trade and Investments,DELAWARE NORTH COMPANIES (WEMBLEY) LTD,132400,"10,000.00"
UK Trade and Investment,UK Trade and Investment Programme,6/4/2010,Event Management,International Group - UK Trade and Investments,DELAWARE NORTH COMPANIES (WEMBLEY) LTD,132400,"7,444.60"
UK Trade and Investment,UK Trade and Investment Programme,6/4/2010,Event Management,International Sectors Group - UK Trade and Investments,FOREIGN AND COMMONWEALTH OFFICE (FCO),131418,762.4
UK Trade and Investment,UK Trade and Investment Programme,6/4/2010,Event Management,International Sectors Group - UK Trade and Investments,FOREIGN AND COMMONWEALTH OFFICE (FCO),131419,"1,242.95"
UK Trade and Investment,UK Trade and Investment Programme,6/4/2010,Event Management,International Sectors Group - UK Trade and Investments,FOREIGN AND COMMONWEALTH OFFICE (FCO),131420,741.21
UK Trade and Investment,UK Trade and Investment Programme,6/4/2010,Event Management,Marketing Directorate - UK Trade and Investments,FOREIGN AND COMMONWEALTH OFFICE (FCO),131414,627.31
UK Trade and Investment,UK Trade and Investment Programme,6/4/2010,Event Management,Marketing Directorate - UK Trade and Investments,FOREIGN AND COMMONWEALTH OFFICE (FCO),131416,659.27
UK Trade and Investment,UK Trade and Investment Programme,6/4/2010,Event Management,Marketing Directorate - UK Trade and Investments,FOREIGN AND COMMONWEALTH OFFICE (FCO),131417,634.83
UK Trade and Investment,UK Trade and Investment Programme,6/4/2010,Venue Hire,Regional Directorate - UK Trade and Investments,MARRIOTT LEICESTER,132409,544.67
UK Trade and Investment,UK Trade and Investment Programme,6/4/2010,Venue Hire,Regional Directorate - UK Trade and Investments,MACKWORTH BUSINESS SERVICES LTD,132412,"3,006.00"
UK Trade and Investment,UK Trade and Investment Programme,6/4/2010,Venue Hire,Regional Directorate - UK Trade and Investments,HOLIDAY INN,132432,"1,680.85"
UK Trade and Investment,UK Trade and Investment Programme,6/4/2010,Sponsorship,Regional Directorate - UK Trade and Investments,EAST MIDLANDS INTERNATIONAL TRADE ASSOCIATION,132427,705
UK Trade and Investment,UK Trade and Investment Programme,6/4/2010,Design Services,International Sectors Group - UK Trade and Investments,ACUMEN DESIGN CONSULTANCY LTD,132405,"2,280.00"
UK Trade and Investment,UK Trade and Investment Programme,6/4/2010,Scheme Management Charges,Regional Directorate - UK Trade and Investments,EAST OF ENGLAND INTERNATIONAL LTD,132404,"1,875.00"
UK Trade and Investment,UK Trade and Investment Programme,6/4/2010,Scheme Management Charges,Regional Directorate - UK Trade and Investments,EAST OF ENGLAND INTERNATIONAL LTD,132404,"17,244.64"
UK Trade and Investment,UK Trade and Investment Programme,6/4/2010,Scheme Management Charges,Regional Directorate - UK Trade and Investments,EAST OF ENGLAND INTERNATIONAL LTD,132404,"22,285.55"
UK Trade and Investment,UK Trade and Investment Programme,6/4/2010,Scheme Management Charges,Regional Directorate - UK Trade and Investments,EAST OF ENGLAND INTERNATIONAL LTD,132404,"47,121.31"
UK Trade and Investment,UK Trade and Investment Programme,6/4/2010,Development Cost - Website (AUC) - Clearing Account,Strategy and Human Resources Group - UK Trade and Investments,VENN GROUP LTD,132435,940
UK Trade and Investment,UK Trade and Investment Programme,6/4/2010,Basic Grants,International Sectors Group - UK Trade and Investments,HORIZON GLOBAL ELECTRONICS LTD,132424,"1,000.00"
UK Trade and Investment,UK Trade and Investment Programme,6/4/2010,Basic Grants,International Sectors Group - UK Trade and Investments,BRILLIANT ADVENTURES LTD,132418,"1,000.00"
UK Trade and Investment,UK Trade and Investment Programme,6/4/2010,Travel and Subsistence O'seas,Regional Directorate - UK Trade and Investments,EGBERT H TAYLOR & CO LTD,132414,650
UK Trade and Investment,UK Trade and Investment Programme,6/4/2010,Scheme Management Charges,Regional Directorate - UK Trade and Investments,AYRIS AND WARD,132194,504.71
UK Trade and Investment,UK Trade and Investment Programme,6/4/2010,Training - General,Regional Directorate - UK Trade and Investments,LEARNING IMPACT INTERNATIONAL LTD,132407,"1,245.00"
UK Trade and Investment,UK Trade and Investment Programme,6/4/2010,Training - General,Regional Directorate - UK Trade and Investments,LEARNING IMPACT INTERNATIONAL LTD,132408,"1,258.50"
UK Trade and Investment,UK Trade and Investment Programme,6/4/2010,Catering,Defence and Security Organisation - UK Trade and Investments,INMARSAT GLOBAL LTD,132416,"2,215.29"
UK Trade and Investment,UK Trade and Investment Programme,6/7/2010,Basic Grants,International Sectors Group - UK Trade and Investments,ACCUTRACK AUTOMATION LTD,132446,"1,000.00"
UK Trade and Investment,UK Trade and Investment Programme,6/7/2010,Basic Grants,International Sectors Group - UK Trade and Investments,BIRMINGHAM CHAMBER OF COMMERCE & INDUSTRY,132457,"2,000.00"
UK Trade and Investment,UK Trade and Investment Programme,6/7/2010,Basic Grants,International Sectors Group - UK Trade and Investments,BRITISH AVIATION GROUP,132454,"8,400.00"
UK Trade and Investment,UK Trade and Investment Programme,6/7/2010,Basic Grants,International Sectors Group - UK Trade and Investments,BFM LTD (BRITISH FURNITURE MANUFACTURERS),132450,"32,200.00"
UK Trade and Investment,UK Trade and Investment Programme,6/7/2010,Sponsors Grants,International Sectors Group - UK Trade and Investments,BRITISH AVIATION GROUP,132453,"19,035.00"
UK Trade and Investment,UK Trade and Investment Programme,6/7/2010,Sponsors Grants,International Sectors Group - UK Trade and Investments,BFM LTD (BRITISH FURNITURE MANUFACTURERS),132449,"5,405.00"
UK Trade and Investment,UK Trade and Investment Programme,6/7/2010,Travel and Subsistence O'seas,Regional Directorate - UK Trade and Investments,DEEHURST LTD T/A TRAVELEADS,132444,"2,865.00"
UK Trade and Investment,UK Trade and Investment Programme,6/7/2010,Travel and Subsistence O'seas,Regional Directorate - UK Trade and Investments,LEONARD DESIGN LTD T/A LEONARD DESIGN ARCHTECTS,132451,550
UK Trade and Investment,UK Trade and Investment Programme,6/7/2010,Travel and Subsistence O'seas,Regional Directorate - UK Trade and Investments,CARBONITE PRO LTD,132445,665
UK Trade and Investment,UK Trade and Investment Programme,6/7/2010,Event Management,International Sectors Group - UK Trade and Investments,BRACKEN PRESENTATIONS LTD,132460,"29,914.45"
UK Trade and Investment,UK Trade and Investment Programme,6/7/2010,Event Management,International Sectors Group - UK Trade and Investments,VENN GROUP LTD,132440,"2,499.99"
UK Trade and Investment,UK Trade and Investment Programme,6/7/2010,Event Management,International Sectors Group - UK Trade and Investments,FOREIGN AND COMMONWEALTH OFFICE (FCO),131475,"18,628.04"
UK Trade and Investment,UK Trade and Investment Programme,6/7/2010,Event Management,International Sectors Group - UK Trade and Investments,FOREIGN AND COMMONWEALTH OFFICE (FCO),131496,"2,601.77"
UK Trade and Investment,UK Trade and Investment Programme,6/7/2010,Event Management,Marketing Directorate - UK Trade and Investments,FOREIGN AND COMMONWEALTH OFFICE (FCO),131479,"1,807.82"
UK Trade and Investment,UK Trade and Investment Programme,6/7/2010,Event Management,Marketing Directorate - UK Trade and Investments,FOREIGN AND COMMONWEALTH OFFICE (FCO),131485,"1,110.62"
UK Trade and Investment,UK Trade and Investment Programme,6/7/2010,Venue Hire,Regional Directorate - UK Trade and Investments,THE NOTTINGHAM BELFRY HOTEL,132470,851.06
UK Trade and Investment,UK Trade and Investment Programme,6/7/2010,Advertising,Marketing Directorate - UK Trade and Investments,FOREIGN AND COMMONWEALTH OFFICE (FCO),131472,"4,676.24"
UK Trade and Investment,UK Trade and Investment Programme,6/7/2010,Promotional Materials,Marketing Directorate - UK Trade and Investments,FOREIGN AND COMMONWEALTH OFFICE (FCO),131473,"2,789.50"
UK Trade and Investment,UK Trade and Investment Programme,6/7/2010,Design Services,Marketing Directorate - UK Trade and Investments,FOREIGN AND COMMONWEALTH OFFICE (FCO),131480,"1,400.00"
UK Trade and Investment,UK Trade and Investment Programme,6/7/2010,Online Services charges,International Sectors Group - UK Trade and Investments,BRACKEN PRESENTATIONS LTD,132461,"4,747.00"
UK Trade and Investment,UK Trade and Investment Programme,6/7/2010,Research and Development Costs,Business Group - UK Trade and Investments,FUSE 8 LTD,131727,"4,450.00"
UK Trade and Investment,UK Trade and Investment Programme,6/7/2010,Research and Development Costs,Business Group - UK Trade and Investments,FUSE 8 LTD,131727,"4,450.00"
UK Trade and Investment,UK Trade and Investment Programme,6/7/2010,Basic Grants,International Sectors Group - UK Trade and Investments,VISIT BRITAIN,132439,"12,000.00"
UK Trade and Investment,UK Trade and Investment Programme,6/7/2010,Basic Grants,International Sectors Group - UK Trade and Investments,ANGLEPOISE LTD,132438,"1,000.00"
UK Trade and Investment,UK Trade and Investment Programme,6/7/2010,Basic Grants,International Sectors Group - UK Trade and Investments,SERVECORP LTD,132443,"1,000.00"
UK Trade and Investment,UK Trade and Investment Programme,6/7/2010,Basic Grants,International Sectors Group - UK Trade and Investments,FOSTERS TRADITIONAL FOODS LTD,132442,"1,000.00"
UK Trade and Investment,UK Trade and Investment Programme,6/7/2010,Sponsors Grants,International Sectors Group - UK Trade and Investments,VISIT BRITAIN,132441,"2,820.00"
UK Trade and Investment,UK Trade and Investment Programme,6/7/2010,Basic Grants,International Sectors Group - UK Trade and Investments,CONSTRUCTION EQUIPMENT ASSOCIATION,132448,"29,000.00"
UK Trade and Investment,UK Trade and Investment Programme,6/7/2010,Sponsors Grants,International Sectors Group - UK Trade and Investments,CONSTRUCTION EQUIPMENT ASSOCIATION,132447,"6,815.00"
UK Trade and Investment,UK Trade and Investment Programme,6/8/2010,Basic Grants,International Sectors Group - UK Trade and Investments,SUBSEA UK,132512,"2,000.00"
UK Trade and Investment,UK Trade and Investment Programme,6/8/2010,Basic Grants,International Sectors Group - UK Trade and Investments,PAINT SERVICES GROUP LTD,132507,"1,000.00"
UK Trade and Investment,UK Trade and Investment Programme,6/8/2010,Basic Grants,International Sectors Group - UK Trade and Investments,MGR FOAMTEX LTD,132510,"1,000.00"
UK Trade and Investment,UK Trade and Investment Programme,6/8/2010,Basic Grants,International Sectors Group - UK Trade and Investments,PANADENT LTD,132509,"1,000.00"
UK Trade and Investment,UK Trade and Investment Programme,6/8/2010,Basic Grants,International Sectors Group - UK Trade and Investments,ISMAIL SACRANIE T/A MODESTLEY ACTIVE,132516,"1,000.00"
UK Trade and Investment,UK Trade and Investment Programme,6/8/2010,Basic Grants,International Sectors Group - UK Trade and Investments,LEFT FILM SALES LTD,132508,"1,000.00"
UK Trade and Investment,UK Trade and Investment Programme,6/8/2010,Travel and Subsistence UK,Regional Directorate - UK Trade and Investments,SGB ASSOCIATES,132502,809.76
UK Trade and Investment,UK Trade and Investment Programme,6/8/2010,Travel and Subsistence O'seas,Regional Directorate - UK Trade and Investments,CONSTELLATION LIGHTING LTD,132493,665
UK Trade and Investment,UK Trade and Investment Programme,6/8/2010,Travel and Subsistence O'seas,Regional Directorate - UK Trade and Investments,ANOTHER DAZE LTD,132500,665
UK Trade and Investment,UK Trade and Investment Programme,6/8/2010,Travel and Subsistence O'seas,Regional Directorate - UK Trade and Investments,ATC3 LLP T/A ATC MANAGEMENT,132517,665
UK Trade and Investment,UK Trade and Investment Programme,6/8/2010,Travel and Subsistence O'seas,Regional Directorate - UK Trade and Investments,CRANSWICK PET & AQUATICS LTD T/A CRANSWICK PET PRODUCTS,132494,665
UK Trade and Investment,UK Trade and Investment Programme,6/8/2010,Training - General,Regional Directorate - UK Trade and Investments,Y & H IDB LTD T/A BUSINESS LINK YORKSHIRE,132532,"4,157.16"
UK Trade and Investment,UK Trade and Investment Programme,6/8/2010,Rental of Accomodation,International Sectors Group - UK Trade and Investments,CROWNE PLAZA BIRMINGHAM NEC,132489,"9,481.50"
UK Trade and Investment,UK Trade and Investment Programme,6/8/2010,Event Management,International Sectors Group - UK Trade and Investments,MRS JING ZHANG,132529,"4,598.00"
UK Trade and Investment,UK Trade and Investment Programme,6/8/2010,Event Management,International Sectors Group - UK Trade and Investments,LONDON INTERNATIONAL EXHIBITION CENTRE PLC,132518,"14,981.25"
UK Trade and Investment,UK Trade and Investment Programme,6/8/2010,Venue Hire,Regional Directorate - UK Trade and Investments,THISTLE HOTEL HAYDOCK,132531,724.25
UK Trade and Investment,UK Trade and Investment Programme,6/8/2010,Catering,International Sectors Group - UK Trade and Investments,FIZZ UK LTD,132528,"2,481.00"
UK Trade and Investment,UK Trade and Investment Programme,6/8/2010,Stand Construction Costs,International Sectors Group - UK Trade and Investments,EXTREME EXHIBITIONS LTD,132495,"11,162.50"
UK Trade and Investment,UK Trade and Investment Programme,6/8/2010,Stand Construction Costs,Marketing Directorate - UK Trade and Investments,ROCKET EXHIBITIONS & EVENTS LTD,132496,"15,000.00"
UK Trade and Investment,UK Trade and Investment Programme,6/8/2010,Stand Construction Costs,Marketing Directorate - UK Trade and Investments,CLEARVIEW IMAGING SERVICES LTD,132546,875
UK Trade and Investment,UK Trade and Investment Programme,6/8/2010,Stand Construction Costs,Marketing Directorate - UK Trade and Investments,CLEARVIEW IMAGING SERVICES LTD,132535,"1,480.00"
UK Trade and Investment,UK Trade and Investment Programme,6/8/2010,Stand Construction Costs,Marketing Directorate - UK Trade and Investments,CLEARVIEW IMAGING SERVICES LTD,132536,"2,260.00"
UK Trade and Investment,UK Trade and Investment Programme,6/8/2010,Stand Construction Costs,Marketing Directorate - UK Trade and Investments,CLEARVIEW IMAGING SERVICES LTD,132550,"12,058.00"
UK Trade and Investment,UK Trade and Investment Programme,6/8/2010,Stand Construction Costs,Marketing Directorate - UK Trade and Investments,CLEARVIEW IMAGING SERVICES LTD,132541,"2,432.00"
UK Trade and Investment,UK Trade and Investment Programme,6/8/2010,Stand Construction Costs,Marketing Directorate - UK Trade and Investments,EXTREME EXHIBITIONS LTD,132540,870.84
UK Trade and Investment,UK Trade and Investment Programme,6/8/2010,Promotional Materials,International Sectors Group - UK Trade and Investments,ITINERIS LTD,132490,"1,175.00"
UK Trade and Investment,UK Trade and Investment Programme,6/8/2010,Promotional Materials,Marketing Directorate - UK Trade and Investments,AWARE PROMOTIONAL MERCHANDISE LTD,132503,"1,116.25"
UK Trade and Investment,UK Trade and Investment Programme,6/8/2010,Promotional Materials,Marketing Directorate - UK Trade and Investments,AWARE PROMOTIONAL MERCHANDISE LTD,132501,"2,058.60"
UK Trade and Investment,UK Trade and Investment Programme,6/8/2010,Promotional Materials,Marketing Directorate - UK Trade and Investments,AWARE PROMOTIONAL MERCHANDISE LTD,132499,916.5
UK Trade and Investment,UK Trade and Investment Programme,6/8/2010,Online Services charges,International Group - UK Trade and Investments,EVOLVE BUSINESS CONSULTANCY LTD,132484,"3,102.00"
UK Trade and Investment,UK Trade and Investment Programme,6/8/2010,Authoring and Copywriting Costs,International Sectors Group - UK Trade and Investments,KATE PHILBIN CONSULTANCY LTD,132487,"1,400.00"
UK Trade and Investment,UK Trade and Investment Programme,6/8/2010,Research & Development,Economics and Evaluation - UK Trade and Investments,OMB RESEARCH LTD,132506,"3,000.00"
UK Trade and Investment,UK Trade and Investment Programme,6/8/2010,Scheme Management Charges,Regional Directorate - UK Trade and Investments,SGB ASSOCIATES,132502,"6,873.75"
UK Trade and Investment,UK Trade and Investment Programme,6/8/2010,Scheme Management Charges,Regional Directorate - UK Trade and Investments,SAPCOTE ENGINEERING LTD,132379,991.19
UK Trade and Investment,UK Trade and Investment Programme,6/8/2010,Scheme Management Charges,Regional Directorate - UK Trade and Investments,Y & H IDB LTD T/A BUSINESS LINK YORKSHIRE,132533,"182,447.50"
UK Trade and Investment,UK Trade and Investment Programme,6/8/2010,Scheme Management Charges,Regional Directorate - UK Trade and Investments,Y & H IDB LTD T/A BUSINESS LINK YORKSHIRE,132532,"102,789.51"
UK Trade and Investment,UK Trade and Investment Programme,6/8/2010,Scheme Management Charges,Regional Directorate - UK Trade and Investments,Y & H IDB LTD T/A BUSINESS LINK YORKSHIRE,132532,"14,662.27"
UK Trade and Investment,UK Trade and Investment Programme,6/8/2010,Scheme Management Charges,Regional Directorate - UK Trade and Investments,SHAHABUDDIN & CO LTD,132383,"1,240.68"
UK Trade and Investment,UK Trade and Investment Programme,6/8/2010,Scheme Management Charges,Regional Directorate - UK Trade and Investments,CHAMBERLINK LTD T/A BUSINESS SUPPORT SOLUTIONS,132530,"117,261.65"
UK Trade and Investment,UK Trade and Investment Programme,6/8/2010,IT Managed Service Contracts,Regional Directorate - UK Trade and Investments,SIRIUS CONCEPTS LTD,132519,"6,000.00"
UK Trade and Investment,UK Trade and Investment Programme,6/8/2010,Basic Grants,International Sectors Group - UK Trade and Investments,REHEAT INTERNATIONAL LTD,132511,"1,000.00"
UK Trade and Investment,UK Trade and Investment Programme,6/8/2010,Scheme Management Charges,Regional Directorate - UK Trade and Investments,POLLEN TRUE TASTE,132386,711.12
UK Trade and Investment,UK Trade and Investment Programme,6/8/2010,Scheme Management Charges,Regional Directorate - UK Trade and Investments,THE RPA GROUP,132387,"1,497.50"
UK Trade and Investment,UK Trade and Investment Programme,6/8/2010,Scheme Management Charges,Regional Directorate - UK Trade and Investments,BIS-WEB LTD,132106,"1,133.07"
UK Trade and Investment,UK Trade and Investment Programme,6/8/2010,Scheme Management Charges,Regional Directorate - UK Trade and Investments,RAVEN BLACK MUSIC,132388,"1,203.90"
UK Trade and Investment,UK Trade and Investment Programme,6/8/2010,Scheme Management Charges,Regional Directorate - UK Trade and Investments,CLARITY BIOSOLUTIONS LTD,132406,"1,381.54"
UK Trade and Investment,UK Trade and Investment Programme,6/8/2010,Scheme Management Charges,Regional Directorate - UK Trade and Investments,SPORT STRUCTURES,132391,897.5
UK Trade and Investment,UK Trade and Investment Programme,6/8/2010,Scheme Management Charges,Regional Directorate - UK Trade and Investments,REG AND RUBY PET ACCESSORIES LTD,132385,625.5
UK Trade and Investment,UK Trade and Investment Programme,6/8/2010,Scheme Management Charges,Regional Directorate - UK Trade and Investments,STEP INTO AFRICA,132381,"1,500.00"
UK Trade and Investment,UK Trade and Investment Programme,6/8/2010,Scheme Management Charges,Regional Directorate - UK Trade and Investments,ONE HUNDRED WORDS INC,132377,896.79
UK Trade and Investment,UK Trade and Investment Programme,6/8/2010,Scheme Management Charges,Regional Directorate - UK Trade and Investments,WOLFSTAR LTD,132395,"1,500.00"
UK Trade and Investment,UK Trade and Investment Programme,6/8/2010,IT Managed Service Contracts,Marketing Directorate - UK Trade and Investments,CAKE SOLUTIONS LTD,132488,"1,152.00"
UK Trade and Investment,UK Trade and Investment Programme,6/8/2010,Event Management,International Sectors Group - UK Trade and Investments,IWM BUSINESS SERVICES LTD,132520,"6,725.00"
UK Trade and Investment,UK Trade and Investment Programme,6/8/2010,Car Hire and Leasing,Defence and Security Organisation - UK Trade and Investments,GOVERNMENT CAR AND DESPATCH AGENCY,132492,"1,828.50"
UK Trade and Investment,UK Trade and Investment Programme,6/9/2010,Venue Hire,International Sectors Group - UK Trade and Investments,"Personal Expense, Name Witheld",504964,"1,645.00"
UK Trade and Investment,UK Trade and Investment Programme,6/9/2010,Salaries and Wages,Marketing Directorate - UK Trade and Investments,BIKKI MARKETING LTD,132602,"2,205.00"
UK Trade and Investment,UK Trade and Investment Programme,6/9/2010,Salaries and Wages,Marketing Directorate - UK Trade and Investments,JAMIE OLIVER,132603,"1,250.00"
UK Trade and Investment,UK Trade and Investment Programme,6/9/2010,Salaries and Wages,Marketing Directorate - UK Trade and Investments,ADECCO UK LTD,132319,"1,034.05"
UK Trade and Investment,UK Trade and Investment Programme,6/9/2010,Salaries and Wages,Marketing Directorate - UK Trade and Investments,METHODS CONSULTING LTD,132561,"6,697.50"
UK Trade and Investment,UK Trade and Investment Programme,6/9/2010,Secondment costs,Business Group - UK Trade and Investments,PERA INNOVATION LTD,132201,"1,607.83"
UK Trade and Investment,UK Trade and Investment Programme,6/9/2010,Event Management,International Sectors Group - UK Trade and Investments,OLGA DAKHINA,132570,500
UK Trade and Investment,UK Trade and Investment Programme,6/9/2010,Event Management,International Sectors Group - UK Trade and Investments,RAILWAY INDUSTRY ASSOCIATION,132559,"4,166.66"
UK Trade and Investment,UK Trade and Investment Programme,6/9/2010,Stand Construction Costs,Marketing Directorate - UK Trade and Investments,CLEARVIEW IMAGING SERVICES LTD,132553,"3,690.00"
UK Trade and Investment,UK Trade and Investment Programme,6/9/2010,Stand Construction Costs,Marketing Directorate - UK Trade and Investments,CLEARVIEW IMAGING SERVICES LTD,132552,"2,950.00"
UK Trade and Investment,UK Trade and Investment Programme,6/9/2010,Stand Construction Costs,Marketing Directorate - UK Trade and Investments,CLEARVIEW IMAGING SERVICES LTD,132555,"1,150.00"
UK Trade and Investment,UK Trade and Investment Programme,6/9/2010,Stand Construction Costs,Marketing Directorate - UK Trade and Investments,CLEARVIEW IMAGING SERVICES LTD,132551,"3,255.00"
UK Trade and Investment,UK Trade and Investment Programme,6/9/2010,Stand Construction Costs,Marketing Directorate - UK Trade and Investments,CLEARVIEW IMAGING SERVICES LTD,132566,"2,475.00"
UK Trade and Investment,UK Trade and Investment Programme,6/9/2010,Stand Construction Costs,Marketing Directorate - UK Trade and Investments,CLEARVIEW IMAGING SERVICES LTD,132564,677.5
UK Trade and Investment,UK Trade and Investment Programme,6/9/2010,Stand Construction Costs,Marketing Directorate - UK Trade and Investments,EXTREME EXHIBITIONS LTD,132576,"3,975.00"
UK Trade and Investment,UK Trade and Investment Programme,6/9/2010,Sponsorship,Regional Directorate - UK Trade and Investments,HULL AND HUMBER CHAMBER OF COMMERCE INDUSTRY AND SHIPPING,132465,"2,000.00"
UK Trade and Investment,UK Trade and Investment Programme,6/9/2010,Promotional Materials,International Sectors Group - UK Trade and Investments,ACUMEN DESIGN CONSULTANCY LTD,132527,-565
UK Trade and Investment,UK Trade and Investment Programme,6/9/2010,Photographic Services,Marketing Directorate - UK Trade and Investments,BRAHM LTD,132601,620
UK Trade and Investment,UK Trade and Investment Programme,6/9/2010,Design Services,Defence and Security Organisation - UK Trade and Investments,RED STONE DESIGN LTD,132588,"1,299.50"
UK Trade and Investment,UK Trade and Investment Programme,6/9/2010,Design Services,Defence and Security Organisation - UK Trade and Investments,RED STONE DESIGN LTD,132589,830.5
UK Trade and Investment,UK Trade and Investment Programme,6/9/2010,Design Services,Defence and Security Organisation - UK Trade and Investments,RED STONE DESIGN LTD,132590,550
UK Trade and Investment,UK Trade and Investment Programme,6/9/2010,Design Services,Defence and Security Organisation - UK Trade and Investments,RED STONE DESIGN LTD,132587,"2,875.00"
UK Trade and Investment,UK Trade and Investment Programme,6/9/2010,Design Services,Defence and Security Organisation - UK Trade and Investments,RED STONE DESIGN LTD,132586,"1,460.00"
UK Trade and Investment,UK Trade and Investment Programme,6/9/2010,Design Services,Defence and Security Organisation - UK Trade and Investments,RED STONE DESIGN LTD,132584,682.5
UK Trade and Investment,UK Trade and Investment Programme,6/9/2010,Design Services,Marketing Directorate - UK Trade and Investments,ACUMEN DESIGN CONSULTANCY LTD,132326,863
UK Trade and Investment,UK Trade and Investment Programme,6/9/2010,Design Services,Marketing Directorate - UK Trade and Investments,CLEARVIEW IMAGING SERVICES LTD,132556,"40,000.00"
UK Trade and Investment,UK Trade and Investment Programme,6/9/2010,Scheme Management Charges,Business Group - UK Trade and Investments,STOPGAP LTD,132568,"8,554.34"
UK Trade and Investment,UK Trade and Investment Programme,6/9/2010,Translation/Interpretation services,Defence and Security Organisation - UK Trade and Investments,RAINBOW LANGUAGE IN BUSINESS LTD,132595,"2,200.00"
UK Trade and Investment,UK Trade and Investment Programme,6/9/2010,Basic Grants,International Sectors Group - UK Trade and Investments,WILLIAM REED BUSINESS MEDIA LTD,132596,"8,000.00"
UK Trade and Investment,UK Trade and Investment Programme,6/9/2010,Basic Grants,International Sectors Group - UK Trade and Investments,BRITISH PLASTICS FEDERATION,132600,"5,000.00"
UK Trade and Investment,UK Trade and Investment Programme,6/9/2010,Sponsors Grants,International Sectors Group - UK Trade and Investments,WILLIAM REED BUSINESS MEDIA LTD,132598,"1,880.00"
UK Trade and Investment,UK Trade and Investment Programme,6/9/2010,Sponsors Grants,International Sectors Group - UK Trade and Investments,BRITISH PLASTICS FEDERATION,132599,"1,175.00"
UK Trade and Investment,UK Trade and Investment Programme,6/9/2010,Other Accomodation costs,International Sectors Group - UK Trade and Investments,JOLLY HOTEL (ST ERMINS),132558,"3,956.00"
UK Trade and Investment,UK Trade and Investment Programme,6/9/2010,Media and Press Services,Marketing Directorate - UK Trade and Investments,FARRAR MEDIA INTERNATIONAL LTD,132562,"15,000.00"
UK Trade and Investment,UK Trade and Investment Programme,6/10/2010,Travel and Subsistence O'seas,International Sectors Group - UK Trade and Investments,"Personal Expense, Name Witheld",504967,929.1
UK Trade and Investment,UK Trade and Investment Programme,6/10/2010,Basic Grants,International Sectors Group - UK Trade and Investments,ASSOCIATION OF BRITISH OFFSHORE INDUSTRIES,132514,"5,000.00"
UK Trade and Investment,UK Trade and Investment Programme,6/10/2010,Basic Grants,International Sectors Group - UK Trade and Investments,BIRMINGHAM CHAMBER OF COMMERCE & INDUSTRY,132611,"1,000.00"
UK Trade and Investment,UK Trade and Investment Programme,6/10/2010,Sponsors Grants,International Sectors Group - UK Trade and Investments,ASSOCIATION OF BRITISH OFFSHORE INDUSTRIES,132515,"1,175.00"
UK Trade and Investment,UK Trade and Investment Programme,6/10/2010,Salaries and Wages,Marketing Directorate - UK Trade and Investments,MICHAEL PAGE INTERNATIONAL RECRUITMENT LTD,132614,"5,744.67"
UK Trade and Investment,UK Trade and Investment Programme,6/10/2010,Travel and Subsistence O'seas,International Sectors Group - UK Trade and Investments,OVE ARUP & PARTNERS SCOTLAND LTD,132639,"1,833.37"
UK Trade and Investment,UK Trade and Investment Programme,6/10/2010,Travel and Subsistence O'seas,Regional Directorate - UK Trade and Investments,DEEHURST LTD T/A TRAVELEADS,132642,891
UK Trade and Investment,UK Trade and Investment Programme,6/10/2010,Travel and Subsistence O'seas,Regional Directorate - UK Trade and Investments,CONTRACTING SOLUTIONS (NEW MEDIA) PLC,132624,600
UK Trade and Investment,UK Trade and Investment Programme,6/10/2010,Training - General,Regional Directorate - UK Trade and Investments,WEST MIDLANDS INTERNATIONAL TRADE LLP,132647,"5,751.19"
UK Trade and Investment,UK Trade and Investment Programme,6/10/2010,Rental of Accomodation,Defence and Security Organisation - UK Trade and Investments,TAJ INTERNATIONAL HOTELS LTD T/A 51 BUCKINGHAM GATE,132623,505.81
UK Trade and Investment,UK Trade and Investment Programme,6/10/2010,Rental of Accomodation,Defence and Security Organisation - UK Trade and Investments,TAJ INTERNATIONAL HOTELS LTD T/A 51 BUCKINGHAM GATE,132622,505.81
UK Trade and Investment,UK Trade and Investment Programme,6/10/2010,Rental of Accomodation,Defence and Security Organisation - UK Trade and Investments,TAJ INTERNATIONAL HOTELS LTD T/A 51 BUCKINGHAM GATE,132622,-505.81
UK Trade and Investment,UK Trade and Investment Programme,6/10/2010,Event Management,International Sectors Group - UK Trade and Investments,ADS GROUP LTD,132560,"6,507.07"
UK Trade and Investment,UK Trade and Investment Programme,6/10/2010,Catering,International Sectors Group - UK Trade and Investments,FOREIGN AND COMMONWEALTH OFFICE (FCO),132458,789.96
UK Trade and Investment,UK Trade and Investment Programme,6/10/2010,Scheme Management Charges,Regional Directorate - UK Trade and Investments,ELMECON LTD,132481,774.42
UK Trade and Investment,UK Trade and Investment Programme,6/10/2010,Scheme Management Charges,Regional Directorate - UK Trade and Investments,PLANTOPIA LTD,132477,790.34
UK Trade and Investment,UK Trade and Investment Programme,6/10/2010,Event Management,International Sectors Group - UK Trade and Investments,MAZORCA PROJECTS LTD T/A HIDDEN ART,132649,"6,000.00"
UK Trade and Investment,UK Trade and Investment Programme,6/10/2010,Scheme Management Charges,Regional Directorate - UK Trade and Investments,EVERYTHING SOLUTIONS LTD,132480,876.15
UK Trade and Investment,UK Trade and Investment Programme,6/10/2010,Scheme Management Charges,Regional Directorate - UK Trade and Investments,CONTAINMENT SERVICE PROVIDERS UK LTD,132486,"1,500.00"
UK Trade and Investment,UK Trade and Investment Programme,6/10/2010,Scheme Management Charges,Regional Directorate - UK Trade and Investments,RACHELJOHN -EXTREME TEXTILES,132476,"1,230.26"
UK Trade and Investment,UK Trade and Investment Programme,6/10/2010,Scheme Management Charges,Regional Directorate - UK Trade and Investments,PHOTOFABRICATION,132482,590
UK Trade and Investment,UK Trade and Investment Programme,6/10/2010,Scheme Management Charges,Regional Directorate - UK Trade and Investments,SCOLMORE INTERNATIONAL,132472,"1,500.00"
UK Trade and Investment,UK Trade and Investment Programme,6/10/2010,Scheme Management Charges,Regional Directorate - UK Trade and Investments,FAST WEB MEDIA LTD,132478,"1,500.00"
UK Trade and Investment,UK Trade and Investment Programme,6/10/2010,Scheme Management Charges,Regional Directorate - UK Trade and Investments,SILVALEA LTD,132474,969.45
UK Trade and Investment,UK Trade and Investment Programme,6/10/2010,Scheme Management Charges,Regional Directorate - UK Trade and Investments,PLURAL MANUFACTURING LTD,132544,"1,498.46"
UK Trade and Investment,UK Trade and Investment Programme,6/10/2010,Scheme Management Charges,Regional Directorate - UK Trade and Investments,REAL IDEAS ORGANISATION,132547,638.19
UK Trade and Investment,UK Trade and Investment Programme,6/10/2010,Basic Grants,International Sectors Group - UK Trade and Investments,CIRCUIT EQUIPMENT & MATERIALS ASSOCIATION,132617,"5,600.00"
UK Trade and Investment,UK Trade and Investment Programme,6/10/2010,Sponsors Grants,International Sectors Group - UK Trade and Investments,CIRCUIT EQUIPMENT & MATERIALS ASSOCIATION,132618,940
UK Trade and Investment,UK Trade and Investment Programme,6/10/2010,Other Accomodation costs,International Sectors Group - UK Trade and Investments,JOLLY HOTEL (ST ERMINS),132619,"13,845.39"
UK Trade and Investment,UK Trade and Investment Programme,6/10/2010,Other Accomodation costs,International Sectors Group - UK Trade and Investments,JOLLY HOTEL (ST ERMINS),132619,"3,519.61"
UK Trade and Investment,UK Trade and Investment Programme,6/11/2010,Travel and Subsistence UK,International Sectors Group - UK Trade and Investments,"Personal Expense, Name Witheld",504968,705.9
UK Trade and Investment,UK Trade and Investment Programme,6/11/2010,Salaries and Wages,Marketing Directorate - UK Trade and Investments,BROOK STREET (UK) LTD,132466,747.3
UK Trade and Investment,UK Trade and Investment Programme,6/11/2010,Salaries and Wages,Marketing Directorate - UK Trade and Investments,BROOK STREET (UK) LTD,132469,597.84
UK Trade and Investment,UK Trade and Investment Programme,6/11/2010,Travel and Subsistence UK,International Sectors Group - UK Trade and Investments,RIVERBANK PARK PLAZA HOTEL,132657,724.86
UK Trade and Investment,UK Trade and Investment Programme,6/11/2010,Travel and Subsistence UK,International Sectors Group - UK Trade and Investments,RIVERBANK PARK PLAZA HOTEL,132657,-724.86
UK Trade and Investment,UK Trade and Investment Programme,6/11/2010,Travel and Subsistence UK,International Sectors Group - UK Trade and Investments,RIVERBANK PARK PLAZA HOTEL,132657,616.9
UK Trade and Investment,UK Trade and Investment Programme,6/11/2010,Training - General,Regional Directorate - UK Trade and Investments,QED CONSULTING,132663,"16,544.00"
UK Trade and Investment,UK Trade and Investment Programme,6/11/2010,Training - General,Regional Directorate - UK Trade and Investments,QED CONSULTING,132661,"9,094.50"
UK Trade and Investment,UK Trade and Investment Programme,6/11/2010,Event Management,International Sectors Group - UK Trade and Investments,BRANDON HILL COMMUNICATIONS LTD,132676,"20,103.57"
UK Trade and Investment,UK Trade and Investment Programme,6/11/2010,Stand Construction Costs,Defence and Security Organisation - UK Trade and Investments,EDGE EXHIBITION DESIGN LTD,132682,"25,220.00"
UK Trade and Investment,UK Trade and Investment Programme,6/11/2010,Sponsorship,Regional Directorate - UK Trade and Investments,NEWSCO INSIDER LTD,132662,"1,100.00"
UK Trade and Investment,UK Trade and Investment Programme,6/11/2010,Video Production Services,Marketing Directorate - UK Trade and Investments,MICK RAWSON,132685,"1,480.00"
UK Trade and Investment,UK Trade and Investment Programme,6/11/2010,Video Production Services,Marketing Directorate - UK Trade and Investments,MICK RAWSON,132686,"1,868.70"
UK Trade and Investment,UK Trade and Investment Programme,6/11/2010,Video Production Services,Marketing Directorate - UK Trade and Investments,MICK RAWSON,132684,"3,048.82"
UK Trade and Investment,UK Trade and Investment Programme,6/11/2010,Authoring and Copywriting Costs,Marketing Directorate - UK Trade and Investments,KREATIVITY LTD,132683,"4,320.00"
UK Trade and Investment,UK Trade and Investment Programme,6/11/2010,Research and Development Costs,Business Group - UK Trade and Investments,S & S DATA LTD,132646,733.95
UK Trade and Investment,UK Trade and Investment Programme,6/11/2010,Scheme Management Charges,Regional Directorate - UK Trade and Investments,MEDILINK (YORKSHIRE AND HUMBER) LTD,132652,"7,387.00"
UK Trade and Investment,UK Trade and Investment Programme,6/11/2010,Scheme Management Charges,Regional Directorate - UK Trade and Investments,MEDILINK (YORKSHIRE AND HUMBER) LTD,132653,"7,387.00"
UK Trade and Investment,UK Trade and Investment Programme,6/11/2010,Other IT Services,International Group - UK Trade and Investments,S & S DATA LTD,132645,679.18
UK Trade and Investment,UK Trade and Investment Programme,6/11/2010,Other IT Services,IT and Finance Group - UK Trade and Investments,S & S DATA LTD,132670,"2,159.76"
UK Trade and Investment,UK Trade and Investment Programme,6/11/2010,Other IT Services,IT and Finance Group - UK Trade and Investments,S & S DATA LTD,132671,"1,224.76"
UK Trade and Investment,UK Trade and Investment Programme,6/11/2010,Other IT Services,IT and Finance Group - UK Trade and Investments,S & S DATA LTD,132673,"2,757.45"
UK Trade and Investment,UK Trade and Investment Programme,6/11/2010,Other IT Services,IT and Finance Group - UK Trade and Investments,S & S DATA LTD,132674,"1,136.25"
UK Trade and Investment,UK Trade and Investment Programme,6/11/2010,Bank Charges - Commercial Banks,Regional Directorate - UK Trade and Investments,DTI OTSS COSTS A\C,132609,"5,199.75"
UK Trade and Investment,UK Trade and Investment Programme,6/11/2010,Basic Grants,International Sectors Group - UK Trade and Investments,COMPOSITES UK LTD,132658,"11,000.00"
UK Trade and Investment,UK Trade and Investment Programme,6/11/2010,Sponsors Grants,International Sectors Group - UK Trade and Investments,COMPOSITES UK LTD,132659,"2,585.00"
UK Trade and Investment,UK Trade and Investment Programme,6/11/2010,Basic Grants,International Sectors Group - UK Trade and Investments,GARDENEX,132655,"8,400.00"
UK Trade and Investment,UK Trade and Investment Programme,6/11/2010,Sponsors Grants,International Sectors Group - UK Trade and Investments,GARDENEX,132656,"1,410.00"
UK Trade and Investment,UK Trade and Investment Programme,6/11/2010,Event Management,International Sectors Group - UK Trade and Investments,BRITISH EXPERTISE,132613,600
UK Trade and Investment,UK Trade and Investment Programme,6/11/2010,Other IT Services,Marketing Directorate - UK Trade and Investments,PANLOGIC LTD,132681,"11,749.00"
UK Trade and Investment,UK Trade and Investment Programme,6/11/2010,IT Managed Service Contracts,IT and Finance Group - UK Trade and Investments,CABLE & WIRELESS COMMUNICATIONS,132677,"57,229.00"
UK Trade and Investment,UK Trade and Investment Programme,6/14/2010,Basic Grants,International Sectors Group - UK Trade and Investments,A C COSSOR & SON (SURGICAL) LTD,132712,"1,000.00"
UK Trade and Investment,UK Trade and Investment Programme,6/14/2010,Basic Grants,International Sectors Group - UK Trade and Investments,HEXAGON INTERNATIONAL (GB) LTD,132716,"1,000.00"
UK Trade and Investment,UK Trade and Investment Programme,6/14/2010,Basic Grants,International Sectors Group - UK Trade and Investments,STANTON CONSULTANCY LTD,132718,"1,000.00"
UK Trade and Investment,UK Trade and Investment Programme,6/14/2010,Basic Grants,International Sectors Group - UK Trade and Investments,HIP JOINT FILMS LTD,132708,"1,000.00"
UK Trade and Investment,UK Trade and Investment Programme,6/14/2010,Basic Grants,International Sectors Group - UK Trade and Investments,AO UK LTD,132702,"1,000.00"
UK Trade and Investment,UK Trade and Investment Programme,6/14/2010,Basic Grants,International Sectors Group - UK Trade and Investments,MEECH INTERNATIONAL LTD,132706,"1,000.00"
UK Trade and Investment,UK Trade and Investment Programme,6/14/2010,Basic Grants,International Sectors Group - UK Trade and Investments,ARTEVEA DIGITAL LTD,132715,"1,000.00"
UK Trade and Investment,UK Trade and Investment Programme,6/14/2010,Basic Grants,International Sectors Group - UK Trade and Investments,MACKENZIE & EBERT LTD,132717,"1,000.00"
UK Trade and Investment,UK Trade and Investment Programme,6/14/2010,Basic Grants,International Sectors Group - UK Trade and Investments,QUICKLASE LTD,132711,"1,000.00"
UK Trade and Investment,UK Trade and Investment Programme,6/14/2010,Basic Grants,International Sectors Group - UK Trade and Investments,ALLIED HYGIENE EUROPE LTD,132707,"1,000.00"
UK Trade and Investment,UK Trade and Investment Programme,6/14/2010,Basic Grants,International Sectors Group - UK Trade and Investments,GLOBAL-MSI PLC,132705,"1,000.00"
UK Trade and Investment,UK Trade and Investment Programme,6/14/2010,Basic Grants,International Sectors Group - UK Trade and Investments,18 BIKES LTD,132704,"1,000.00"
UK Trade and Investment,UK Trade and Investment Programme,6/14/2010,Basic Grants,International Sectors Group - UK Trade and Investments,I2R MEDICAL LTD,132709,"1,000.00"
UK Trade and Investment,UK Trade and Investment Programme,6/14/2010,Basic Grants,International Sectors Group - UK Trade and Investments,THE WORLD OF YACHTS AND BOATS LTD,132699,"1,000.00"
UK Trade and Investment,UK Trade and Investment Programme,6/14/2010,Salaries and Wages,Marketing Directorate - UK Trade and Investments,JAMIE OLIVER,132729,"1,250.00"
UK Trade and Investment,UK Trade and Investment Programme,6/14/2010,Travel and Subsistence O'seas,Regional Directorate - UK Trade and Investments,PURE SCIENCE LTD T/A SENSE WORLDWIDE,132731,750
UK Trade and Investment,UK Trade and Investment Programme,6/14/2010,Venue Hire,International Sectors Group - UK Trade and Investments,NOVOTEL MANCHESTER CENTRE,132695,"1,076.59"
UK Trade and Investment,UK Trade and Investment Programme,6/14/2010,Venue Hire,Strategy and Human Resources Group - UK Trade and Investments,FOREIGN AND COMMONWEALTH OFFICE (FCO),132626,"1,274.83"
UK Trade and Investment,UK Trade and Investment Programme,6/14/2010,Venue Hire,Strategy and Human Resources Group - UK Trade and Investments,FOREIGN AND COMMONWEALTH OFFICE (FCO),132628,655.62
UK Trade and Investment,UK Trade and Investment Programme,6/14/2010,Venue Hire,Strategy and Human Resources Group - UK Trade and Investments,FOREIGN AND COMMONWEALTH OFFICE (FCO),132629,764.7
UK Trade and Investment,UK Trade and Investment Programme,6/14/2010,Stand Construction Costs,Regional Directorate - UK Trade and Investments,QMJ PUBLISHING LTD,132732,610.94
UK Trade and Investment,UK Trade and Investment Programme,6/14/2010,Stand Construction Costs,Regional Directorate - UK Trade and Investments,QMJ PUBLISHING LTD,132734,"1,222.06"
UK Trade and Investment,UK Trade and Investment Programme,6/14/2010,Advertising,Marketing Directorate - UK Trade and Investments,THE FINANCIAL TIMES LTD,132733,"12,630.00"
UK Trade and Investment,UK Trade and Investment Programme,6/14/2010,Research and Development Costs,Business Group - UK Trade and Investments,PERA INNOVATION LTD,132691,"37,178.95"
UK Trade and Investment,UK Trade and Investment Programme,6/14/2010,Scheme Management Charges,Regional Directorate - UK Trade and Investments,ONELONDON TRADE AND INVESTMENT LTD,132730,"240,758.23"
UK Trade and Investment,UK Trade and Investment Programme,6/14/2010,Basic Grants,International Sectors Group - UK Trade and Investments,SPECTRALWORKS LTD,132713,"1,000.00"
UK Trade and Investment,UK Trade and Investment Programme,6/14/2010,Basic Grants,International Sectors Group - UK Trade and Investments,LORE LTD,132703,"1,000.00"
UK Trade and Investment,UK Trade and Investment Programme,6/14/2010,Basic Grants,International Sectors Group - UK Trade and Investments,WAVIATECH LTD,132710,"1,000.00"
UK Trade and Investment,UK Trade and Investment Programme,6/14/2010,Basic Grants,International Sectors Group - UK Trade and Investments,ZEON HEALTHCARE LTD,132714,"1,000.00"
UK Trade and Investment,UK Trade and Investment Programme,6/14/2010,Basic Grants,International Sectors Group - UK Trade and Investments,NUMLOCK LTD T/A CONTINUITY SHOP,132700,"1,000.00"
UK Trade and Investment,UK Trade and Investment Programme,6/14/2010,Travel and Subsistence O'seas,Regional Directorate - UK Trade and Investments,RIDGWAY MACHINES LTD,132725,600
UK Trade and Investment,UK Trade and Investment Programme,6/14/2010,Basic Grants,International Sectors Group - UK Trade and Investments,ELECTRONIC EXPORTERS GROUP,132687,"21,000.00"
UK Trade and Investment,UK Trade and Investment Programme,6/14/2010,Sponsors Grants,International Sectors Group - UK Trade and Investments,ELECTRONIC EXPORTERS GROUP,132688,"4,935.00"
UK Trade and Investment,UK Trade and Investment Programme,6/14/2010,Car Hire and Leasing,Defence and Security Organisation - UK Trade and Investments,GOVERNMENT CAR AND DESPATCH AGENCY,132692,641.06
UK Trade and Investment,UK Trade and Investment Programme,6/14/2010,Car Hire and Leasing,Defence and Security Organisation - UK Trade and Investments,GOVERNMENT CAR AND DESPATCH AGENCY,132578,"1,117.50"
UK Trade and Investment,UK Trade and Investment Programme,6/15/2010,Basic Grants,International Sectors Group - UK Trade and Investments,S.I.M MACHINE TOOLS LTD,132766,"1,000.00"
UK Trade and Investment,UK Trade and Investment Programme,6/15/2010,Basic Grants,International Sectors Group - UK Trade and Investments,HEACHAM LTD T/A H ROLLET,132768,"1,000.00"
UK Trade and Investment,UK Trade and Investment Programme,6/15/2010,Basic Grants,International Sectors Group - UK Trade and Investments,PARKBURN PRECISION HANDLING SYSTEMS LTD,132767,"1,000.00"
UK Trade and Investment,UK Trade and Investment Programme,6/15/2010,Basic Grants,International Sectors Group - UK Trade and Investments,BRITISH EUROPEAN DESIGN GROUP,132746,"37,000.00"
UK Trade and Investment,UK Trade and Investment Programme,6/15/2010,Salaries and Wages,Marketing Directorate - UK Trade and Investments,ADECCO UK LTD,132804,760.63
UK Trade and Investment,UK Trade and Investment Programme,6/15/2010,Salaries and Wages,Marketing Directorate - UK Trade and Investments,ADECCO UK LTD,132804,-760.63
UK Trade and Investment,UK Trade and Investment Programme,6/15/2010,Salaries and Wages,Marketing Directorate - UK Trade and Investments,ADECCO UK LTD,132804,777.17
UK Trade and Investment,UK Trade and Investment Programme,6/15/2010,Salaries and Wages,Marketing Directorate - UK Trade and Investments,BROOK STREET (UK) LTD,132720,747.3
UK Trade and Investment,UK Trade and Investment Programme,6/15/2010,Travel and Subsistence O'seas,Regional Directorate - UK Trade and Investments,BIPIN PATEL T/A BP BIOTECH PHARMACY,132784,500
UK Trade and Investment,UK Trade and Investment Programme,6/15/2010,Travel and Subsistence O'seas,Regional Directorate - UK Trade and Investments,ACERMETRIC LTD,132787,650
UK Trade and Investment,UK Trade and Investment Programme,6/15/2010,Travel and Subsistence O'seas,Regional Directorate - UK Trade and Investments,AMG SYSTEMS LTD,132785,550
UK Trade and Investment,UK Trade and Investment Programme,6/15/2010,Event Management,International Group - UK Trade and Investments,MARYLEBONE CRICKET CLUB,132777,"2,550.00"
UK Trade and Investment,UK Trade and Investment Programme,6/15/2010,Event Management,International Sectors Group - UK Trade and Investments,MACDONALD TICKLED TROUT,132800,813.62
UK Trade and Investment,UK Trade and Investment Programme,6/15/2010,Event Management,International Sectors Group - UK Trade and Investments,ANDRICH INTERNATIONAL LTD,132774,"1,789.27"
UK Trade and Investment,UK Trade and Investment Programme,6/15/2010,Event Management,International Sectors Group - UK Trade and Investments,VENN GROUP LTD,132738,"1,215.75"
UK Trade and Investment,UK Trade and Investment Programme,6/15/2010,Event Management,International Sectors Group - UK Trade and Investments,VENN GROUP LTD,132737,"1,519.69"
UK Trade and Investment,UK Trade and Investment Programme,6/15/2010,Event Management,International Sectors Group - UK Trade and Investments,BRANDON HILL COMMUNICATIONS LTD,132793,"29,815.57"
UK Trade and Investment,UK Trade and Investment Programme,6/15/2010,Catering,International Sectors Group - UK Trade and Investments,COMPASS SERVICES UK LTD,132743,"1,968.00"
UK Trade and Investment,UK Trade and Investment Programme,6/15/2010,Other Transportation Hire,International Sectors Group - UK Trade and Investments,CLARKES OF LONDON,132803,"1,935.00"
UK Trade and Investment,UK Trade and Investment Programme,6/15/2010,Promotional Materials,Marketing Directorate - UK Trade and Investments,AWARE PROMOTIONAL MERCHANDISE LTD,132775,"1,418.81"
UK Trade and Investment,UK Trade and Investment Programme,6/15/2010,Promotional Materials,Marketing Directorate - UK Trade and Investments,AWARE PROMOTIONAL MERCHANDISE LTD,132773,552.25
UK Trade and Investment,UK Trade and Investment Programme,6/15/2010,Printing Costs,Marketing Directorate - UK Trade and Investments,WHITEHOUSE MAINWARING DESIGN CONSULTANTS LTD,132735,"2,450.00"
UK Trade and Investment,UK Trade and Investment Programme,6/15/2010,Video Production Services,International Sectors Group - UK Trade and Investments,CANTOS COMMUNICATIONS (UK) LLP,132795,"2,233.00"
UK Trade and Investment,UK Trade and Investment Programme,6/15/2010,Video Production Services,Marketing Directorate - UK Trade and Investments,S K & E S MAHER T/A SKM PRODUCTIONS,132778,678.1
UK Trade and Investment,UK Trade and Investment Programme,6/15/2010,Video Production Services,Marketing Directorate - UK Trade and Investments,S K & E S MAHER T/A SKM PRODUCTIONS,132778,"1,860.00"
UK Trade and Investment,UK Trade and Investment Programme,6/15/2010,Video Production Services,Marketing Directorate - UK Trade and Investments,S K & E S MAHER T/A SKM PRODUCTIONS,132780,"1,550.00"
UK Trade and Investment,UK Trade and Investment Programme,6/15/2010,Video Production Services,Marketing Directorate - UK Trade and Investments,S K & E S MAHER T/A SKM PRODUCTIONS,132781,"1,321.72"
UK Trade and Investment,UK Trade and Investment Programme,6/15/2010,Design Services,Marketing Directorate - UK Trade and Investments,WHITEHOUSE MAINWARING DESIGN CONSULTANTS LTD,132735,725
UK Trade and Investment,UK Trade and Investment Programme,6/15/2010,Design Services,Marketing Directorate - UK Trade and Investments,ELITEXPO CARGO SYSTEMS INC,132583,707.4
UK Trade and Investment,UK Trade and Investment Programme,6/15/2010,Design Services,Marketing Directorate - UK Trade and Investments,ELITEXPO CARGO SYSTEMS INC,132582,714.29
UK Trade and Investment,UK Trade and Investment Programme,6/15/2010,Design Services,Marketing Directorate - UK Trade and Investments,ELITEXPO CARGO SYSTEMS INC,132580,714.29
UK Trade and Investment,UK Trade and Investment Programme,6/15/2010,Licenses and Copyright Agreements,Regional Directorate - UK Trade and Investments,EUROMONITOR plc,132543,"16,192.68"
UK Trade and Investment,UK Trade and Investment Programme,6/15/2010,Library Services,International Sectors Group - UK Trade and Investments,LIFE SCIENCE ANALYTICS INC.,132736,"6,500.00"
UK Trade and Investment,UK Trade and Investment Programme,6/15/2010,Research & Development,Business Group - UK Trade and Investments,OCO GLOBAL LTD,132747,"6,750.00"
UK Trade and Investment,UK Trade and Investment Programme,6/15/2010,Research & Development,Economics and Evaluation - UK Trade and Investments,THE UNIVERSITY OF NOTTINGHAM,131985,"-20,680.00"
UK Trade and Investment,UK Trade and Investment Programme,6/15/2010,Research & Development,Economics and Evaluation - UK Trade and Investments,THE UNIVERSITY OF NOTTINGHAM,131983,"24,300.00"
UK Trade and Investment,UK Trade and Investment Programme,6/15/2010,Scheme Management Charges,Business Group - UK Trade and Investments,PERA INNOVATION LTD,132779,"192,634.89"
UK Trade and Investment,UK Trade and Investment Programme,6/15/2010,Scheme Management Charges,Regional Directorate - UK Trade and Investments,AMEY COMMUNITY LTD,132799,"2,815.54"
UK Trade and Investment,UK Trade and Investment Programme,6/15/2010,Bank Charges - Commercial Banks,Regional Directorate - UK Trade and Investments,DTI OTSS COSTS A\C,132740,825
UK Trade and Investment,UK Trade and Investment Programme,6/15/2010,Bank Charges - Commercial Banks,Regional Directorate - UK Trade and Investments,DTI OTSS COSTS A\C,132739,556
UK Trade and Investment,UK Trade and Investment Programme,6/15/2010,Development Cost - Website (AUC) - Clearing Account,Strategy and Human Resources Group - UK Trade and Investments,MORGAN HUNT PUBLIC SECTOR LTD,132770,752
UK Trade and Investment,UK Trade and Investment Programme,6/15/2010,Basic Grants,International Sectors Group - UK Trade and Investments,ANDEREN LTD,132769,"1,000.00"
UK Trade and Investment,UK Trade and Investment Programme,6/15/2010,Basic Grants,International Sectors Group - UK Trade and Investments,VERSATILE INSURANCE PROFESSIONALS LTD T/A AADUKI MULTIMEDIA INSURANCE,132771,"1,000.00"
UK Trade and Investment,UK Trade and Investment Programme,6/15/2010,Travel and Subsistence O'seas,Regional Directorate - UK Trade and Investments,ENVIROGEN TECHNOLOGIES LTD,132701,795
UK Trade and Investment,UK Trade and Investment Programme,6/15/2010,Travel and Subsistence O'seas,Regional Directorate - UK Trade and Investments,ENVIROGEN TECHNOLOGIES LTD,132701,-795
UK Trade and Investment,UK Trade and Investment Programme,6/15/2010,Travel and Subsistence O'seas,Regional Directorate - UK Trade and Investments,ENVIROGEN TECHNOLOGIES LTD,132701,795
UK Trade and Investment,UK Trade and Investment Programme,6/15/2010,Scheme Management Charges,Regional Directorate - UK Trade and Investments,TIM WRIGHT,132635,669.99
UK Trade and Investment,UK Trade and Investment Programme,6/15/2010,Scheme Management Charges,Regional Directorate - UK Trade and Investments,THE COOL CREATIVE COMPANY LTD,132631,974.08
UK Trade and Investment,UK Trade and Investment Programme,6/15/2010,Basic Grants,International Sectors Group - UK Trade and Investments,COMMERCIAL HORTICULTURAL ASSOCIATION,132744,"3,600.00"
UK Trade and Investment,UK Trade and Investment Programme,6/15/2010,Sponsors Grants,International Sectors Group - UK Trade and Investments,COMMERCIAL HORTICULTURAL ASSOCIATION,132745,"6,345.00"
UK Trade and Investment,UK Trade and Investment Programme,6/15/2010,Sponsors Grants,International Sectors Group - UK Trade and Investments,BIOINDUSTRY ASSOCIATION,132752,"8,930.00"
UK Trade and Investment,UK Trade and Investment Programme,6/15/2010,Event Management,International Sectors Group - UK Trade and Investments,ABERDEEN EXHIBITION AND CONFERENCE CENTRE LTD,132782,"1,031.25"
UK Trade and Investment,UK Trade and Investment Programme,6/15/2010,Event Management,International Sectors Group - UK Trade and Investments,THE CONSTRUCTION EQUIPMENT ASSOCIATION (CEA),132801,"30,000.00"
UK Trade and Investment,UK Trade and Investment Programme,6/15/2010,Car Hire and Leasing,Defence and Security Organisation - UK Trade and Investments,GOVERNMENT CAR AND DESPATCH AGENCY,132751,711
UK Trade and Investment,UK Trade and Investment Programme,6/15/2010,Car Hire and Leasing,Defence and Security Organisation - UK Trade and Investments,GOVERNMENT CAR AND DESPATCH AGENCY,132751,"1,117.50"
UK Trade and Investment,UK Trade and Investment Programme,6/15/2010,Other IT Services,Marketing Directorate - UK Trade and Investments,PANLOGIC LTD,132719,"8,680.00"
UK Trade and Investment,UK Trade and Investment Programme,6/16/2010,Basic Grants,International Sectors Group - UK Trade and Investments,EXPONENTIAL TRAINING & ASSESSMENT LTD,132840,"1,000.00"
UK Trade and Investment,UK Trade and Investment Programme,6/16/2010,Basic Grants,International Sectors Group - UK Trade and Investments,ABACUS EW CONSULTANCY LTD,132839,"1,000.00"
UK Trade and Investment,UK Trade and Investment Programme,6/16/2010,Basic Grants,International Sectors Group - UK Trade and Investments,SKYMASTS ANTENNAS LTD,132833,"1,000.00"
UK Trade and Investment,UK Trade and Investment Programme,6/16/2010,Basic Grants,International Sectors Group - UK Trade and Investments,POOLEYS FLIGHT EQUIPMENT LTD,132834,"1,000.00"
UK Trade and Investment,UK Trade and Investment Programme,6/16/2010,Basic Grants,International Sectors Group - UK Trade and Investments,BRITISH WATER,132815,"1,800.00"
UK Trade and Investment,UK Trade and Investment Programme,6/16/2010,Salaries and Wages,Marketing Directorate - UK Trade and Investments,MICHAEL PAGE INTERNATIONAL RECRUITMENT LTD,132776,"3,125.50"
UK Trade and Investment,UK Trade and Investment Programme,6/16/2010,Salaries and Wages,Marketing Directorate - UK Trade and Investments,DETTREX MEDIA LTD,132811,"2,600.00"
UK Trade and Investment,UK Trade and Investment Programme,6/16/2010,Salaries and Wages,Marketing Directorate - UK Trade and Investments,DETTREX MEDIA LTD,132811,"5,000.00"
UK Trade and Investment,UK Trade and Investment Programme,6/16/2010,Travel and Subsistence UK,International Sectors Group - UK Trade and Investments,B & H CHAUFFEUR SERVICES LTD,132805,"1,500.00"
UK Trade and Investment,UK Trade and Investment Programme,6/16/2010,Travel and Subsistence O'seas,Regional Directorate - UK Trade and Investments,E J BOWMAN (BIRMINGHAM) LTD,132820,750
UK Trade and Investment,UK Trade and Investment Programme,6/16/2010,Event Management,International Sectors Group - UK Trade and Investments,MAMA FESTIVALS LTD,132810,"2,000.00"
UK Trade and Investment,UK Trade and Investment Programme,6/16/2010,Event Management,International Sectors Group - UK Trade and Investments,TENT LONDON LTD,132831,"10,000.00"
UK Trade and Investment,UK Trade and Investment Programme,6/16/2010,Event Management,International Sectors Group - UK Trade and Investments,CHAMBERLINK LTD T/A BUSINESS SUPPORT SOLUTIONS,132571,630
UK Trade and Investment,UK Trade and Investment Programme,6/16/2010,Stand Construction Costs,Marketing Directorate - UK Trade and Investments,OCEAN DESIGNS LTD,132850,"6,340.00"
UK Trade and Investment,UK Trade and Investment Programme,6/16/2010,Stand Construction Costs,Marketing Directorate - UK Trade and Investments,OCEAN DESIGNS LTD,132849,"1,040.00"
UK Trade and Investment,UK Trade and Investment Programme,6/16/2010,Stand Construction Costs,Marketing Directorate - UK Trade and Investments,OCEAN DESIGNS LTD,132851,"2,155.00"
UK Trade and Investment,UK Trade and Investment Programme,6/16/2010,Stand Construction Costs,Marketing Directorate - UK Trade and Investments,OCEAN DESIGNS LTD,132853,"1,960.00"
UK Trade and Investment,UK Trade and Investment Programme,6/16/2010,Stand Construction Costs,Marketing Directorate - UK Trade and Investments,CLEARVIEW IMAGING SERVICES LTD,132847,"7,000.00"
UK Trade and Investment,UK Trade and Investment Programme,6/16/2010,Stand Construction Costs,Marketing Directorate - UK Trade and Investments,CLEARVIEW IMAGING SERVICES LTD,132847,939.3
UK Trade and Investment,UK Trade and Investment Programme,6/16/2010,Other Transportation Hire,Regional Directorate - UK Trade and Investments,THE KINGS FERRY LTD T/A CONNECTIONS,132728,665
UK Trade and Investment,UK Trade and Investment Programme,6/16/2010,Sponsorship,International Sectors Group - UK Trade and Investments,PRELUDE TO BUSINESS LTD (THE SUPPER CLUB),132806,"1,762.50"
UK Trade and Investment,UK Trade and Investment Programme,6/16/2010,Video Production Services,Marketing Directorate - UK Trade and Investments,WINKONTENT LTD,132814,"20,000.00"
UK Trade and Investment,UK Trade and Investment Programme,6/16/2010,Video Production Services,Marketing Directorate - UK Trade and Investments,MARTIN ATKINS PHOTOGRAPHY,132809,674.2
UK Trade and Investment,UK Trade and Investment Programme,6/16/2010,Video Production Services,Marketing Directorate - UK Trade and Investments,@VOYTEK LTD,132821,"3,066.50"
UK Trade and Investment,UK Trade and Investment Programme,6/16/2010,Video Production Services,Marketing Directorate - UK Trade and Investments,@VOYTEK LTD,132824,"1,327.00"
UK Trade and Investment,UK Trade and Investment Programme,6/16/2010,Design Services,Marketing Directorate - UK Trade and Investments,WHITEHOUSE MAINWARING DESIGN CONSULTANTS LTD,132825,"1,150.00"
UK Trade and Investment,UK Trade and Investment Programme,6/16/2010,Online Services charges,Marketing Directorate - UK Trade and Investments,TARSUS EXHIBITIONS & PUBLISHING LTD,132845,"5,000.00"
UK Trade and Investment,UK Trade and Investment Programme,6/16/2010,Authoring and Copywriting Costs,Marketing Directorate - UK Trade and Investments,ARCADIAN WORLD LTD,132836,"3,825.00"
UK Trade and Investment,UK Trade and Investment Programme,6/16/2010,Research and Development Costs,Business Group - UK Trade and Investments,THE FINANCIAL TIMES LTD,132828,"45,000.00"
UK Trade and Investment,UK Trade and Investment Programme,6/16/2010,Translation/Interpretation services,International Sectors Group - UK Trade and Investments,ANGLO-CHINESE TRANSLATIONS LTD,132572,800
UK Trade and Investment,UK Trade and Investment Programme,6/16/2010,Translation/Interpretation services,International Sectors Group - UK Trade and Investments,ANGLO-CHINESE TRANSLATIONS LTD,132572,-800
UK Trade and Investment,UK Trade and Investment Programme,6/16/2010,Translation/Interpretation services,International Sectors Group - UK Trade and Investments,ANGLO-CHINESE TRANSLATIONS LTD,132572,800
UK Trade and Investment,UK Trade and Investment Programme,6/16/2010,Basic Grants,International Sectors Group - UK Trade and Investments,TRANSVAC SYSTEMS LTD,132830,"1,000.00"
UK Trade and Investment,UK Trade and Investment Programme,6/16/2010,Basic Grants,International Sectors Group - UK Trade and Investments,LINWAVE TECHNOLOGY LTD,132837,"1,000.00"
UK Trade and Investment,UK Trade and Investment Programme,6/16/2010,Basic Grants,International Sectors Group - UK Trade and Investments,GLEN ABBOT LTD,132838,"1,000.00"
UK Trade and Investment,UK Trade and Investment Programme,6/16/2010,Basic Grants,International Sectors Group - UK Trade and Investments,WILKS (RUBBER PLASTICS) MFGS CO LTD,132829,"1,000.00"
UK Trade and Investment,UK Trade and Investment Programme,6/16/2010,Basic Grants,International Sectors Group - UK Trade and Investments,Mactavish Consulting Ltd,132832,"1,000.00"
UK Trade and Investment,UK Trade and Investment Programme,6/16/2010,Scheme Management Charges,Regional Directorate - UK Trade and Investments,STORM SKIS LTD,132380,"1,025.00"
UK Trade and Investment,UK Trade and Investment Programme,6/16/2010,Basic Grants,International Sectors Group - UK Trade and Investments,BRITISH JEWELLERY AND GIFTWARE FEDERATION,132818,"12,600.00"
UK Trade and Investment,UK Trade and Investment Programme,6/16/2010,Basic Grants,International Sectors Group - UK Trade and Investments,THE SOCIETY OF MOTOR MANUFACTURERS AND TRADERS LTD INDUSTRY FORUM,132816,"12,600.00"
UK Trade and Investment,UK Trade and Investment Programme,6/16/2010,Basic Grants,International Sectors Group - UK Trade and Investments,THE NUMERICAL ALGORITHMS GROUP LTD,132835,"1,000.00"
UK Trade and Investment,UK Trade and Investment Programme,6/16/2010,Sponsors Grants,International Sectors Group - UK Trade and Investments,BRITISH JEWELLERY AND GIFTWARE FEDERATION,132819,"2,115.00"
UK Trade and Investment,UK Trade and Investment Programme,6/16/2010,Sponsors Grants,International Sectors Group - UK Trade and Investments,THE SOCIETY OF MOTOR MANUFACTURERS AND TRADERS LTD INDUSTRY FORUM,132817,"2,115.00"
UK Trade and Investment,UK Trade and Investment Programme,6/17/2010,Basic Grants,International Sectors Group - UK Trade and Investments,ASSOCIATION OF BRITISH MINING EQUIPMENT COMPANIES,132861,"2,000.00"
UK Trade and Investment,UK Trade and Investment Programme,6/17/2010,Salaries and Wages,Marketing Directorate - UK Trade and Investments,HUNTRESS SEARCH LTD,132876,881.25
UK Trade and Investment,UK Trade and Investment Programme,6/17/2010,Salaries and Wages,Marketing Directorate - UK Trade and Investments,HUNTRESS SEARCH LTD,132876,-881.25
UK Trade and Investment,UK Trade and Investment Programme,6/17/2010,Salaries and Wages,Marketing Directorate - UK Trade and Investments,HUNTRESS SEARCH LTD,132876,852.7
UK Trade and Investment,UK Trade and Investment Programme,6/17/2010,Secondment costs,International Sectors Group - UK Trade and Investments,SCOTT WILSON LTD,132878,"8,786.65"
UK Trade and Investment,UK Trade and Investment Programme,6/17/2010,Secondment costs,International Sectors Group - UK Trade and Investments,PERA INTERNATIONAL LTD,132860,"5,186.70"
UK Trade and Investment,UK Trade and Investment Programme,6/17/2010,Travel and Subsistence O'seas,International Sectors Group - UK Trade and Investments,FOREIGN AND COMMONWEALTH OFFICE (FCO),131896,500
UK Trade and Investment,UK Trade and Investment Programme,6/17/2010,Travel and Subsistence O'seas,International Sectors Group - UK Trade and Investments,FOREIGN AND COMMONWEALTH OFFICE (FCO),131897,500
UK Trade and Investment,UK Trade and Investment Programme,6/17/2010,Travel and Subsistence O'seas,Strategy and Human Resources Group - UK Trade and Investments,FOREIGN AND COMMONWEALTH OFFICE (FCO),131886,601
UK Trade and Investment,UK Trade and Investment Programme,6/17/2010,Travel and Subsistence O'seas,Strategy and Human Resources Group - UK Trade and Investments,FOREIGN AND COMMONWEALTH OFFICE (FCO),131920,"1,016.35"
UK Trade and Investment,UK Trade and Investment Programme,6/17/2010,Travel and Subsistence O'seas,Strategy and Human Resources Group - UK Trade and Investments,FOREIGN AND COMMONWEALTH OFFICE (FCO),131921,"3,513.10"
UK Trade and Investment,UK Trade and Investment Programme,6/17/2010,Travel and Subsistence O'seas,Strategy and Human Resources Group - UK Trade and Investments,FOREIGN AND COMMONWEALTH OFFICE (FCO),504948,"4,537.71"
UK Trade and Investment,UK Trade and Investment Programme,6/17/2010,Travel and Subsistence O'seas,Strategy and Human Resources Group - UK Trade and Investments,FOREIGN AND COMMONWEALTH OFFICE (FCO),504950,"3,377.62"
UK Trade and Investment,UK Trade and Investment Programme,6/17/2010,Professional Subscriptions,Marketing Directorate - UK Trade and Investments,FOREIGN AND COMMONWEALTH OFFICE (FCO),131885,"8,000.00"
UK Trade and Investment,UK Trade and Investment Programme,6/17/2010,Rental of Accomodation,Strategy and Human Resources Group - UK Trade and Investments,FOREIGN AND COMMONWEALTH OFFICE (FCO),504952,583.65
UK Trade and Investment,UK Trade and Investment Programme,6/17/2010,Rental of Accomodation,Strategy and Human Resources Group - UK Trade and Investments,FOREIGN AND COMMONWEALTH OFFICE (FCO),504951,751.7
UK Trade and Investment,UK Trade and Investment Programme,6/17/2010,Rental of Accomodation,Strategy and Human Resources Group - UK Trade and Investments,FOREIGN AND COMMONWEALTH OFFICE (FCO),504953,741.09
UK Trade and Investment,UK Trade and Investment Programme,6/17/2010,Event Management,International Sectors Group - UK Trade and Investments,FOREIGN AND COMMONWEALTH OFFICE (FCO),504935,"-18,726.24"
UK Trade and Investment,UK Trade and Investment Programme,6/17/2010,Event Management,International Sectors Group - UK Trade and Investments,FOREIGN AND COMMONWEALTH OFFICE (FCO),131904,"18,520.89"
UK Trade and Investment,UK Trade and Investment Programme,6/17/2010,Event Management,International Sectors Group - UK Trade and Investments,FOREIGN AND COMMONWEALTH OFFICE (FCO),131863,"4,117.00"
UK Trade and Investment,UK Trade and Investment Programme,6/17/2010,Event Management,International Sectors Group - UK Trade and Investments,FOREIGN AND COMMONWEALTH OFFICE (FCO),131975,"1,059.11"
UK Trade and Investment,UK Trade and Investment Programme,6/17/2010,Event Management,International Sectors Group - UK Trade and Investments,FOREIGN AND COMMONWEALTH OFFICE (FCO),131898,"3,247.39"
UK Trade and Investment,UK Trade and Investment Programme,6/17/2010,Event Management,International Sectors Group - UK Trade and Investments,FOREIGN AND COMMONWEALTH OFFICE (FCO),131907,969.8
UK Trade and Investment,UK Trade and Investment Programme,6/17/2010,Event Management,International Sectors Group - UK Trade and Investments,FOREIGN AND COMMONWEALTH OFFICE (FCO),131922,992.92
UK Trade and Investment,UK Trade and Investment Programme,6/17/2010,Event Management,International Sectors Group - UK Trade and Investments,FOREIGN AND COMMONWEALTH OFFICE (FCO),131934,"1,030.89"
UK Trade and Investment,UK Trade and Investment Programme,6/17/2010,Event Management,International Sectors Group - UK Trade and Investments,FOREIGN AND COMMONWEALTH OFFICE (FCO),504939,"1,000.00"
UK Trade and Investment,UK Trade and Investment Programme,6/17/2010,Event Management,International Sectors Group - UK Trade and Investments,FOREIGN AND COMMONWEALTH OFFICE (FCO),504944,"1,016.14"
UK Trade and Investment,UK Trade and Investment Programme,6/17/2010,Event Management,International Sectors Group - UK Trade and Investments,FOREIGN AND COMMONWEALTH OFFICE (FCO),504946,605.03
UK Trade and Investment,UK Trade and Investment Programme,6/17/2010,Event Management,International Sectors Group - UK Trade and Investments,FOREIGN AND COMMONWEALTH OFFICE (FCO),504957,690.9
UK Trade and Investment,UK Trade and Investment Programme,6/17/2010,Event Management,Marketing Directorate - UK Trade and Investments,FOREIGN AND COMMONWEALTH OFFICE (FCO),131868,"1,258.82"
UK Trade and Investment,UK Trade and Investment Programme,6/17/2010,Event Management,Marketing Directorate - UK Trade and Investments,FOREIGN AND COMMONWEALTH OFFICE (FCO),131871,"3,872.54"
UK Trade and Investment,UK Trade and Investment Programme,6/17/2010,Event Management,Marketing Directorate - UK Trade and Investments,FOREIGN AND COMMONWEALTH OFFICE (FCO),131973,"2,316.81"
UK Trade and Investment,UK Trade and Investment Programme,6/17/2010,Event Management,Marketing Directorate - UK Trade and Investments,FOREIGN AND COMMONWEALTH OFFICE (FCO),131979,"1,309.48"
UK Trade and Investment,UK Trade and Investment Programme,6/17/2010,Event Management,Marketing Directorate - UK Trade and Investments,FOREIGN AND COMMONWEALTH OFFICE (FCO),131880,"3,465.91"
UK Trade and Investment,UK Trade and Investment Programme,6/17/2010,Event Management,Marketing Directorate - UK Trade and Investments,FOREIGN AND COMMONWEALTH OFFICE (FCO),131927,"5,702.43"
UK Trade and Investment,UK Trade and Investment Programme,6/17/2010,Event Management,Marketing Directorate - UK Trade and Investments,FOREIGN AND COMMONWEALTH OFFICE (FCO),131930,"5,001.99"
UK Trade and Investment,UK Trade and Investment Programme,6/17/2010,Event Management,Marketing Directorate - UK Trade and Investments,FOREIGN AND COMMONWEALTH OFFICE (FCO),131933,"9,698.00"
UK Trade and Investment,UK Trade and Investment Programme,6/17/2010,Event Management,Marketing Directorate - UK Trade and Investments,FOREIGN AND COMMONWEALTH OFFICE (FCO),131937,719.64
UK Trade and Investment,UK Trade and Investment Programme,6/17/2010,Event Management,Marketing Directorate - UK Trade and Investments,FOREIGN AND COMMONWEALTH OFFICE (FCO),131956,"2,975.39"
UK Trade and Investment,UK Trade and Investment Programme,6/17/2010,Event Management,Marketing Directorate - UK Trade and Investments,FOREIGN AND COMMONWEALTH OFFICE (FCO),504958,"1,424.31"
UK Trade and Investment,UK Trade and Investment Programme,6/17/2010,Event Management,Marketing Directorate - UK Trade and Investments,FOREIGN AND COMMONWEALTH OFFICE (FCO),504959,"1,011.34"
UK Trade and Investment,UK Trade and Investment Programme,6/17/2010,Venue Hire,Regional Directorate - UK Trade and Investments,SHIRE HOTELS LTD,132872,"1,022.47"
UK Trade and Investment,UK Trade and Investment Programme,6/17/2010,Stand Construction Costs,Marketing Directorate - UK Trade and Investments,OCEAN DESIGNS LTD,132859,650
UK Trade and Investment,UK Trade and Investment Programme,6/17/2010,Other Transportation Hire,Strategy and Human Resources Group - UK Trade and Investments,FOREIGN AND COMMONWEALTH OFFICE (FCO),504940,"1,236.68"
UK Trade and Investment,UK Trade and Investment Programme,6/17/2010,Advertising,Marketing Directorate - UK Trade and Investments,WATERLOW LEGAL & REGULATORY LTD,132879,"3,000.00"
UK Trade and Investment,UK Trade and Investment Programme,6/17/2010,Video Production Services,Marketing Directorate - UK Trade and Investments,FOREIGN AND COMMONWEALTH OFFICE (FCO),131916,"-2,941.94"
UK Trade and Investment,UK Trade and Investment Programme,6/17/2010,Video Production Services,Marketing Directorate - UK Trade and Investments,FOREIGN AND COMMONWEALTH OFFICE (FCO),131901,"2,700.00"
UK Trade and Investment,UK Trade and Investment Programme,6/17/2010,Video Production Services,Marketing Directorate - UK Trade and Investments,FOREIGN AND COMMONWEALTH OFFICE (FCO),131902,"11,364.21"
UK Trade and Investment,UK Trade and Investment Programme,6/17/2010,Design Services,Marketing Directorate - UK Trade and Investments,ADVANCED ILLUSTRATIONS LTD,132858,"2,838.00"
UK Trade and Investment,UK Trade and Investment Programme,6/17/2010,Authoring and Copywriting Costs,Marketing Directorate - UK Trade and Investments,ARCADIAN WORLD LTD,132857,"2,550.00"
UK Trade and Investment,UK Trade and Investment Programme,6/17/2010,Authoring and Copywriting Costs,Marketing Directorate - UK Trade and Investments,CODEGENT LTD,132864,"10,300.00"
UK Trade and Investment,UK Trade and Investment Programme,6/17/2010,Media and Press Services,Marketing Directorate - UK Trade and Investments,FOREIGN AND COMMONWEALTH OFFICE (FCO),131882,"1,886.17"
UK Trade and Investment,UK Trade and Investment Programme,6/17/2010,Telemarketing,Marketing Directorate - UK Trade and Investments,FOREIGN AND COMMONWEALTH OFFICE (FCO),131963,604.51
UK Trade and Investment,UK Trade and Investment Programme,6/17/2010,Translation/Interpretation services,Strategy and Human Resources Group - UK Trade and Investments,FOREIGN AND COMMONWEALTH OFFICE (FCO),131924,"1,745.64"
UK Trade and Investment,UK Trade and Investment Programme,6/17/2010,Scheme Management Charges,Regional Directorate - UK Trade and Investments,SAM UBHI JEWELLERY,132760,"1,500.00"
UK Trade and Investment,UK Trade and Investment Programme,6/17/2010,Scheme Management Charges,Regional Directorate - UK Trade and Investments,RUSSELL BUSINESS SERVICES LTD,132863,"5,922.00"
UK Trade and Investment,UK Trade and Investment Programme,6/17/2010,Scheme Management Charges,Regional Directorate - UK Trade and Investments,BRONZERAT RECORDS LTD,132678,"1,115.77"
UK Trade and Investment,UK Trade and Investment Programme,6/17/2010,Scheme Management Charges,Regional Directorate - UK Trade and Investments,DETECH EUROPE LTD,132483,"1,022.31"
UK Trade and Investment,UK Trade and Investment Programme,6/17/2010,Scheme Management Charges,Regional Directorate - UK Trade and Investments,THINKING GIFTS LTD,132634,"1,197.00"
UK Trade and Investment,UK Trade and Investment Programme,6/17/2010,Scheme Management Charges,Regional Directorate - UK Trade and Investments,SARACENS SOLICITORS LTD,132633,934
UK Trade and Investment,UK Trade and Investment Programme,6/17/2010,Scheme Management Charges,Regional Directorate - UK Trade and Investments,HAYMARKET NETWORK LTD,132761,500
UK Trade and Investment,UK Trade and Investment Programme,6/17/2010,Scheme Management Charges,Regional Directorate - UK Trade and Investments,EASTERN LEADERSHIP CENTRE,132764,"1,320.00"
UK Trade and Investment,UK Trade and Investment Programme,6/17/2010,Scheme Management Charges,Regional Directorate - UK Trade and Investments,RYBURN RUBBER LTD,132471,795.83
UK Trade and Investment,UK Trade and Investment Programme,6/17/2010,Scheme Management Charges,Regional Directorate - UK Trade and Investments,BOND BRYAN ARCHITECTS LTD,132679,809.79
UK Trade and Investment,UK Trade and Investment Programme,6/17/2010,Scheme Management Charges,Regional Directorate - UK Trade and Investments,BURGESS PET CARE,132549,"1,500.00"
UK Trade and Investment,UK Trade and Investment Programme,6/17/2010,Scheme Management Charges,Regional Directorate - UK Trade and Investments,PENNINE CYCLES,132636,"1,500.00"
UK Trade and Investment,UK Trade and Investment Programme,6/17/2010,Scheme Management Charges,Regional Directorate - UK Trade and Investments,KELTIE & COCHRANE LTD,132759,"1,500.00"
UK Trade and Investment,UK Trade and Investment Programme,6/17/2010,Scheme Management Charges,Regional Directorate - UK Trade and Investments,PROJECT SOLUTIONS GROUP,132753,"1,406.72"
UK Trade and Investment,UK Trade and Investment Programme,6/17/2010,Scheme Management Charges,Regional Directorate - UK Trade and Investments,WRIGHTS DOWSON GROUP,132765,549.85
UK Trade and Investment,UK Trade and Investment Programme,6/18/2010,Sponsors Grants,International Sectors Group - UK Trade and Investments,BRITISH EUROPEAN DESIGN GROUP,132899,"20,445.00"
UK Trade and Investment,UK Trade and Investment Programme,6/18/2010,Salaries and Wages,Marketing Directorate - UK Trade and Investments,MICHAEL PAGE INTERNATIONAL RECRUITMENT LTD,132901,"3,906.88"
UK Trade and Investment,UK Trade and Investment Programme,6/18/2010,Salaries and Wages,Marketing Directorate - UK Trade and Investments,MICHAEL PAGE INTERNATIONAL RECRUITMENT LTD,132902,"15,209.20"
UK Trade and Investment,UK Trade and Investment Programme,6/18/2010,Travel and Subsistence O'seas,Regional Directorate - UK Trade and Investments,LULU GUINNESS LTD,132897,650
UK Trade and Investment,UK Trade and Investment Programme,6/18/2010,Travel and Subsistence O'seas,Regional Directorate - UK Trade and Investments,BACKWOODSMAN LTD,132898,665
UK Trade and Investment,UK Trade and Investment Programme,6/18/2010,Rental of Accomodation,Defence and Security Organisation - UK Trade and Investments,VILLA PANTHEON,132616,"4,987.42"
UK Trade and Investment,UK Trade and Investment Programme,6/18/2010,Event Management,International Sectors Group - UK Trade and Investments,INTERNATIONAL VISUAL COMMUNICATIONS ASSOCIATION [IVCA],132888,"14,000.00"
UK Trade and Investment,UK Trade and Investment Programme,6/18/2010,Printing Costs,Regional Directorate - UK Trade and Investments,SLAP & TICKLE ARTWORK & DESIGN LTD,132907,782.55
UK Trade and Investment,UK Trade and Investment Programme,6/18/2010,Printing Costs,Regional Directorate - UK Trade and Investments,SLAP & TICKLE ARTWORK & DESIGN LTD,132907,"2,291.50"
UK Trade and Investment,UK Trade and Investment Programme,6/18/2010,Design Services,Marketing Directorate - UK Trade and Investments,WHITEHOUSE MAINWARING DESIGN CONSULTANTS LTD,132869,"1,265.00"
UK Trade and Investment,UK Trade and Investment Programme,6/18/2010,Scheme Management Charges,Business Group - UK Trade and Investments,PERA INNOVATION LTD,132882,"112,004.08"
UK Trade and Investment,UK Trade and Investment Programme,6/18/2010,Development Cost - Website (AUC) - Clearing Account,Strategy and Human Resources Group - UK Trade and Investments,VENN GROUP LTD,132904,"1,128.00"
UK Trade and Investment,UK Trade and Investment Programme,6/18/2010,Travel and Subsistence O'seas,Regional Directorate - UK Trade and Investments,EYE BOOKS LTD,132895,500
UK Trade and Investment,UK Trade and Investment Programme,6/18/2010,Event Management,International Sectors Group - UK Trade and Investments,DESIGNERS BLOCK,132856,"6,000.00"
UK Trade and Investment,UK Trade and Investment Programme,6/21/2010,Refund of Fees and Charges,Regional Directorate - UK Trade and Investments,DE BEERS UK LTD,132610,"1,265.22"
UK Trade and Investment,UK Trade and Investment Programme,6/21/2010,Basic Grants,International Sectors Group - UK Trade and Investments,STEELFIELDS LTD,132974,"1,000.00"
UK Trade and Investment,UK Trade and Investment Programme,6/21/2010,Salaries and Wages,Marketing Directorate - UK Trade and Investments,JAMIE OLIVER,132914,"1,250.00"
UK Trade and Investment,UK Trade and Investment Programme,6/21/2010,Salaries and Wages,Marketing Directorate - UK Trade and Investments,ADECCO UK LTD,132916,694.06
UK Trade and Investment,UK Trade and Investment Programme,6/21/2010,Salaries and Wages,Marketing Directorate - UK Trade and Investments,STOPGAP LTD,132931,"5,767.78"
UK Trade and Investment,UK Trade and Investment Programme,6/21/2010,Salaries and Wages,Marketing Directorate - UK Trade and Investments,STOPGAP LTD,132929,"6,952.53"
UK Trade and Investment,UK Trade and Investment Programme,6/21/2010,Salaries and Wages,Marketing Directorate - UK Trade and Investments,STOPGAP LTD,132930,955.03
UK Trade and Investment,UK Trade and Investment Programme,6/21/2010,Travel and Subsistence O'seas,Defence and Security Organisation - UK Trade and Investments,FOREIGN AND COMMONWEALTH OFFICE (FCO),132018,"3,976.28"
UK Trade and Investment,UK Trade and Investment Programme,6/21/2010,Travel and Subsistence O'seas,Defence and Security Organisation - UK Trade and Investments,FOREIGN AND COMMONWEALTH OFFICE (FCO),132073,652.43
UK Trade and Investment,UK Trade and Investment Programme,6/21/2010,Travel and Subsistence O'seas,International Sectors Group - UK Trade and Investments,JOSEPH RHODES LTD,132986,"4,444.70"
UK Trade and Investment,UK Trade and Investment Programme,6/21/2010,Travel and Subsistence O'seas,International Sectors Group - UK Trade and Investments,FOREIGN AND COMMONWEALTH OFFICE (FCO),132046,556.15
UK Trade and Investment,UK Trade and Investment Programme,6/21/2010,Travel and Subsistence O'seas,International Sectors Group - UK Trade and Investments,FOREIGN AND COMMONWEALTH OFFICE (FCO),132047,752.65
UK Trade and Investment,UK Trade and Investment Programme,6/21/2010,Travel and Subsistence O'seas,Regional Directorate - UK Trade and Investments,SOUTH EAST TRADE & INVESTMENT LTD,132991,775
UK Trade and Investment,UK Trade and Investment Programme,6/21/2010,Travel and Subsistence O'seas,Regional Directorate - UK Trade and Investments,SOUTH EAST TRADE & INVESTMENT LTD,132991,"1,000.00"
UK Trade and Investment,UK Trade and Investment Programme,6/21/2010,Travel and Subsistence O'seas,Regional Directorate - UK Trade and Investments,NAVEVO LTD,132967,750
UK Trade and Investment,UK Trade and Investment Programme,6/21/2010,Travel and Subsistence O'seas,Regional Directorate - UK Trade and Investments,EURO PA SERVICES LTD,132965,600
UK Trade and Investment,UK Trade and Investment Programme,6/21/2010,Travel and Subsistence O'seas,Regional Directorate - UK Trade and Investments,THE ORCHARD ORGANISATION LTD,132971,650
UK Trade and Investment,UK Trade and Investment Programme,6/21/2010,Entertainment O'Seas,Defence and Security Organisation - UK Trade and Investments,FOREIGN AND COMMONWEALTH OFFICE (FCO),132079,"6,205.19"
UK Trade and Investment,UK Trade and Investment Programme,6/21/2010,Training - General,Regional Directorate - UK Trade and Investments,SOUTH EAST TRADE & INVESTMENT LTD,132917,"5,500.00"
UK Trade and Investment,UK Trade and Investment Programme,6/21/2010,Training - General,Regional Directorate - UK Trade and Investments,SOUTH EAST TRADE & INVESTMENT LTD,132917,"1,078.15"
UK Trade and Investment,UK Trade and Investment Programme,6/21/2010,Conference and seminar fees,International Sectors Group - UK Trade and Investments,FOREIGN AND COMMONWEALTH OFFICE (FCO),132095,"1,315.36"
UK Trade and Investment,UK Trade and Investment Programme,6/21/2010,Rental of Accomodation,Defence and Security Organisation - UK Trade and Investments,TAJ INTERNATIONAL HOTELS LTD T/A 51 BUCKINGHAM GATE,132637,695.25
UK Trade and Investment,UK Trade and Investment Programme,6/21/2010,Rental of Accomodation,Defence and Security Organisation - UK Trade and Investments,TAJ INTERNATIONAL HOTELS LTD T/A 51 BUCKINGHAM GATE,132637,-695.25
UK Trade and Investment,UK Trade and Investment Programme,6/21/2010,Rental of Accomodation,Defence and Security Organisation - UK Trade and Investments,TAJ INTERNATIONAL HOTELS LTD T/A 51 BUCKINGHAM GATE,132637,695.25
UK Trade and Investment,UK Trade and Investment Programme,6/21/2010,Rental of Accomodation,Defence and Security Organisation - UK Trade and Investments,TAJ INTERNATIONAL HOTELS LTD T/A 51 BUCKINGHAM GATE,132637,-695.25
UK Trade and Investment,UK Trade and Investment Programme,6/21/2010,Rental of Accomodation,Defence and Security Organisation - UK Trade and Investments,TAJ INTERNATIONAL HOTELS LTD T/A 51 BUCKINGHAM GATE,132637,705
UK Trade and Investment,UK Trade and Investment Programme,6/21/2010,Event Management,International Group - UK Trade and Investments,FOREIGN AND COMMONWEALTH OFFICE (FCO),132104,684.81
UK Trade and Investment,UK Trade and Investment Programme,6/21/2010,Event Management,International Sectors Group - UK Trade and Investments,MRS JING ZHANG,132984,"4,598.00"
UK Trade and Investment,UK Trade and Investment Programme,6/21/2010,Event Management,International Sectors Group - UK Trade and Investments,FOREIGN AND COMMONWEALTH OFFICE (FCO),132028,"4,935.00"
UK Trade and Investment,UK Trade and Investment Programme,6/21/2010,Event Management,International Sectors Group - UK Trade and Investments,FOREIGN AND COMMONWEALTH OFFICE (FCO),132035,997.56
UK Trade and Investment,UK Trade and Investment Programme,6/21/2010,Event Management,International Sectors Group - UK Trade and Investments,FOREIGN AND COMMONWEALTH OFFICE (FCO),132042,"2,371.17"
UK Trade and Investment,UK Trade and Investment Programme,6/21/2010,Event Management,International Sectors Group - UK Trade and Investments,FOREIGN AND COMMONWEALTH OFFICE (FCO),132050,"2,303.08"
UK Trade and Investment,UK Trade and Investment Programme,6/21/2010,Event Management,International Sectors Group - UK Trade and Investments,FOREIGN AND COMMONWEALTH OFFICE (FCO),132051,"1,266.17"
UK Trade and Investment,UK Trade and Investment Programme,6/21/2010,Event Management,International Sectors Group - UK Trade and Investments,FOREIGN AND COMMONWEALTH OFFICE (FCO),132053,"3,780.81"
UK Trade and Investment,UK Trade and Investment Programme,6/21/2010,Event Management,International Sectors Group - UK Trade and Investments,FOREIGN AND COMMONWEALTH OFFICE (FCO),132054,"3,821.10"
UK Trade and Investment,UK Trade and Investment Programme,6/21/2010,Event Management,International Sectors Group - UK Trade and Investments,FOREIGN AND COMMONWEALTH OFFICE (FCO),132055,"1,406.86"
UK Trade and Investment,UK Trade and Investment Programme,6/21/2010,Event Management,International Sectors Group - UK Trade and Investments,FOREIGN AND COMMONWEALTH OFFICE (FCO),132064,"1,344.33"
UK Trade and Investment,UK Trade and Investment Programme,6/21/2010,Event Management,International Sectors Group - UK Trade and Investments,FOREIGN AND COMMONWEALTH OFFICE (FCO),132067,"16,936.53"
UK Trade and Investment,UK Trade and Investment Programme,6/21/2010,Event Management,International Sectors Group - UK Trade and Investments,FOREIGN AND COMMONWEALTH OFFICE (FCO),132081,"1,391.92"
UK Trade and Investment,UK Trade and Investment Programme,6/21/2010,Event Management,International Sectors Group - UK Trade and Investments,FOREIGN AND COMMONWEALTH OFFICE (FCO),132109,993.46
UK Trade and Investment,UK Trade and Investment Programme,6/21/2010,Event Management,International Sectors Group - UK Trade and Investments,FOREIGN AND COMMONWEALTH OFFICE (FCO),132111,"1,973.04"
UK Trade and Investment,UK Trade and Investment Programme,6/21/2010,Event Management,International Sectors Group - UK Trade and Investments,FOREIGN AND COMMONWEALTH OFFICE (FCO),132114,"1,072.54"
UK Trade and Investment,UK Trade and Investment Programme,6/21/2010,Event Management,Marketing Directorate - UK Trade and Investments,FOREIGN AND COMMONWEALTH OFFICE (FCO),132087,"-1,876.22"
UK Trade and Investment,UK Trade and Investment Programme,6/21/2010,Event Management,Marketing Directorate - UK Trade and Investments,FOREIGN AND COMMONWEALTH OFFICE (FCO),132006,"11,844.46"
UK Trade and Investment,UK Trade and Investment Programme,6/21/2010,Event Management,Marketing Directorate - UK Trade and Investments,FOREIGN AND COMMONWEALTH OFFICE (FCO),132127,522.85
UK Trade and Investment,UK Trade and Investment Programme,6/21/2010,Event Management,Marketing Directorate - UK Trade and Investments,FOREIGN AND COMMONWEALTH OFFICE (FCO),132128,887.87
UK Trade and Investment,UK Trade and Investment Programme,6/21/2010,Event Management,Marketing Directorate - UK Trade and Investments,FOREIGN AND COMMONWEALTH OFFICE (FCO),132044,"1,748.50"
UK Trade and Investment,UK Trade and Investment Programme,6/21/2010,Event Management,Marketing Directorate - UK Trade and Investments,FOREIGN AND COMMONWEALTH OFFICE (FCO),132096,"2,301.87"
UK Trade and Investment,UK Trade and Investment Programme,6/21/2010,Event Management,Marketing Directorate - UK Trade and Investments,FOREIGN AND COMMONWEALTH OFFICE (FCO),132071,"1,189.54"
UK Trade and Investment,UK Trade and Investment Programme,6/21/2010,Event Management,Marketing Directorate - UK Trade and Investments,FOREIGN AND COMMONWEALTH OFFICE (FCO),132102,917.47
UK Trade and Investment,UK Trade and Investment Programme,6/21/2010,Event Management,Marketing Directorate - UK Trade and Investments,FOREIGN AND COMMONWEALTH OFFICE (FCO),132119,"1,348.92"
UK Trade and Investment,UK Trade and Investment Programme,6/21/2010,Event Management,Marketing Directorate - UK Trade and Investments,FOREIGN AND COMMONWEALTH OFFICE (FCO),132120,986.52
UK Trade and Investment,UK Trade and Investment Programme,6/21/2010,Event Management,Marketing Directorate - UK Trade and Investments,FOREIGN AND COMMONWEALTH OFFICE (FCO),132126,522.85
UK Trade and Investment,UK Trade and Investment Programme,6/21/2010,Event Management,Regional Directorate - UK Trade and Investments,SOUTH EAST TRADE & INVESTMENT LTD,132910,"3,300.00"
UK Trade and Investment,UK Trade and Investment Programme,6/21/2010,Venue Hire,Business Group - UK Trade and Investments,CROWNE PLAZA LONDON-ST JAMES,132915,"2,760.00"
UK Trade and Investment,UK Trade and Investment Programme,6/21/2010,Venue Hire,Regional Directorate - UK Trade and Investments,HOLIDAY INN,132982,787.23
UK Trade and Investment,UK Trade and Investment Programme,6/21/2010,Venue Hire,Regional Directorate - UK Trade and Investments,YEW LODGE HOTEL,132970,651.06
UK Trade and Investment,UK Trade and Investment Programme,6/21/2010,Catering,International Sectors Group - UK Trade and Investments,FOREIGN AND COMMONWEALTH OFFICE (FCO),132097,"8,170.94"
UK Trade and Investment,UK Trade and Investment Programme,6/21/2010,Catering,International Sectors Group - UK Trade and Investments,FOREIGN AND COMMONWEALTH OFFICE (FCO),132109,820.04
UK Trade and Investment,UK Trade and Investment Programme,6/21/2010,Advertising,Marketing Directorate - UK Trade and Investments,FOREIGN AND COMMONWEALTH OFFICE (FCO),132025,"7,601.90"
UK Trade and Investment,UK Trade and Investment Programme,6/21/2010,Advertising,Marketing Directorate - UK Trade and Investments,FOREIGN AND COMMONWEALTH OFFICE (FCO),132025,"1,137.29"
UK Trade and Investment,UK Trade and Investment Programme,6/21/2010,Advertising,Marketing Directorate - UK Trade and Investments,FOREIGN AND COMMONWEALTH OFFICE (FCO),132026,"5,752.95"
UK Trade and Investment,UK Trade and Investment Programme,6/21/2010,Advertising,Marketing Directorate - UK Trade and Investments,FOREIGN AND COMMONWEALTH OFFICE (FCO),132026,"1,077.79"
UK Trade and Investment,UK Trade and Investment Programme,6/21/2010,Advertising,Marketing Directorate - UK Trade and Investments,FOREIGN AND COMMONWEALTH OFFICE (FCO),132027,"3,000.00"
UK Trade and Investment,UK Trade and Investment Programme,6/21/2010,Advertising,Marketing Directorate - UK Trade and Investments,FOREIGN AND COMMONWEALTH OFFICE (FCO),132038,"2,800.00"
UK Trade and Investment,UK Trade and Investment Programme,6/21/2010,Sponsorship,Regional Directorate - UK Trade and Investments,SOUTH EAST TRADE & INVESTMENT LTD,132910,"4,700.00"
UK Trade and Investment,UK Trade and Investment Programme,6/21/2010,Promotional Materials,Marketing Directorate - UK Trade and Investments,FOREIGN AND COMMONWEALTH OFFICE (FCO),132024,"1,056.64"
UK Trade and Investment,UK Trade and Investment Programme,6/21/2010,Promotional Materials,Marketing Directorate - UK Trade and Investments,FOREIGN AND COMMONWEALTH OFFICE (FCO),132041,677.48
UK Trade and Investment,UK Trade and Investment Programme,6/21/2010,Promotional Materials,Marketing Directorate - UK Trade and Investments,AWARE PROMOTIONAL MERCHANDISE LTD,132908,505.25
UK Trade and Investment,UK Trade and Investment Programme,6/21/2010,Printing Costs,Regional Directorate - UK Trade and Investments,UYR LTD,132903,665
UK Trade and Investment,UK Trade and Investment Programme,6/21/2010,Video Production Services,Marketing Directorate - UK Trade and Investments,MICK RAWSON,132962,"3,185.78"
UK Trade and Investment,UK Trade and Investment Programme,6/21/2010,Design Services,Marketing Directorate - UK Trade and Investments,ACUMEN DESIGN CONSULTANCY LTD,132922,975
UK Trade and Investment,UK Trade and Investment Programme,6/21/2010,Media and Press Services,Marketing Directorate - UK Trade and Investments,FOREIGN AND COMMONWEALTH OFFICE (FCO),132059,631.41
UK Trade and Investment,UK Trade and Investment Programme,6/21/2010,Media and Press Services,Marketing Directorate - UK Trade and Investments,FOREIGN AND COMMONWEALTH OFFICE (FCO),132060,983.82
UK Trade and Investment,UK Trade and Investment Programme,6/21/2010,Media and Press Services,Marketing Directorate - UK Trade and Investments,ENERGY DATA SERVICES LTD T/A PRECISE,132948,"1,978.56"
UK Trade and Investment,UK Trade and Investment Programme,6/21/2010,Media and Press Services,Marketing Directorate - UK Trade and Investments,ENERGY DATA SERVICES LTD T/A PRECISE,132951,"3,969.34"
UK Trade and Investment,UK Trade and Investment Programme,6/21/2010,Research & Development,Economics and Evaluation - UK Trade and Investments,RICK DENT & JOHN MADDEN T/A RSM,132961,"44,972.50"
UK Trade and Investment,UK Trade and Investment Programme,6/21/2010,Scheme Management Charges,Regional Directorate - UK Trade and Investments,LORRAINE ELLISON,132966,952.69
UK Trade and Investment,UK Trade and Investment Programme,6/21/2010,Scheme Management Charges,Regional Directorate - UK Trade and Investments,LORRAINE ELLISON,132968,"1,143.98"
UK Trade and Investment,UK Trade and Investment Programme,6/21/2010,Scheme Management Charges,Regional Directorate - UK Trade and Investments,SOUTH EAST TRADE & INVESTMENT LTD,132918,"274,452.43"
UK Trade and Investment,UK Trade and Investment Programme,6/21/2010,Basic Grants,International Sectors Group - UK Trade and Investments,EUROPEAN TECHNOLOGY DEVELOPMENT LTD,132973,"1,000.00"
UK Trade and Investment,UK Trade and Investment Programme,6/21/2010,Basic Grants,International Sectors Group - UK Trade and Investments,MAN&EVE LTD,132976,"1,000.00"
UK Trade and Investment,UK Trade and Investment Programme,6/21/2010,IT Managed Service Contracts,Marketing Directorate - UK Trade and Investments,CAKE SOLUTIONS LTD,132913,"4,200.00"
UK Trade and Investment,UK Trade and Investment Programme,6/21/2010,Basic Grants,International Sectors Group - UK Trade and Investments,CARRIER COMPANY,132978,"1,000.00"
UK Trade and Investment,UK Trade and Investment Programme,6/22/2010,Basic Grants,International Sectors Group - UK Trade and Investments,ELIZABETH WHITING ASSOCIATES LTD,133057,"1,000.00"
UK Trade and Investment,UK Trade and Investment Programme,6/22/2010,Basic Grants,International Sectors Group - UK Trade and Investments,RUMENCO LTD,133088,"1,000.00"
UK Trade and Investment,UK Trade and Investment Programme,6/22/2010,Basic Grants,International Sectors Group - UK Trade and Investments,OPTUS RESIN TECHNOLOGY LTD,133087,"1,000.00"
UK Trade and Investment,UK Trade and Investment Programme,6/22/2010,Basic Grants,International Sectors Group - UK Trade and Investments,MI-DOCKSPEAKERS LTD,133084,"1,000.00"
UK Trade and Investment,UK Trade and Investment Programme,6/22/2010,Basic Grants,International Sectors Group - UK Trade and Investments,CHRISTINE TURNER T/A TUERNER & CO,133075,"1,000.00"
UK Trade and Investment,UK Trade and Investment Programme,6/22/2010,Basic Grants,International Sectors Group - UK Trade and Investments,NOVI SYSTEMS LTD,133077,"1,000.00"
UK Trade and Investment,UK Trade and Investment Programme,6/22/2010,Basic Grants,International Sectors Group - UK Trade and Investments,QUANTUM AVIATION SOLUTIONS LTD,133079,"1,000.00"
UK Trade and Investment,UK Trade and Investment Programme,6/22/2010,Basic Grants,International Sectors Group - UK Trade and Investments,HANAN MAGOU T/A MISS MAGOU,133083,"1,000.00"
UK Trade and Investment,UK Trade and Investment Programme,6/22/2010,Basic Grants,International Sectors Group - UK Trade and Investments,DOCO INTERNATIONAL LTD,133056,"1,000.00"
UK Trade and Investment,UK Trade and Investment Programme,6/22/2010,Salaries and Wages,Marketing Directorate - UK Trade and Investments,BROOK STREET (UK) LTD,132995,747.3
UK Trade and Investment,UK Trade and Investment Programme,6/22/2010,Salaries and Wages,Marketing Directorate - UK Trade and Investments,STOPGAP LTD,132938,"4,614.23"
UK Trade and Investment,UK Trade and Investment Programme,6/22/2010,Salaries and Wages,Marketing Directorate - UK Trade and Investments,STOPGAP LTD,132932,"6,005.14"
UK Trade and Investment,UK Trade and Investment Programme,6/22/2010,Salaries and Wages,Marketing Directorate - UK Trade and Investments,STOPGAP LTD,132939,"2,366.81"
UK Trade and Investment,UK Trade and Investment Programme,6/22/2010,Travel and Subsistence O'seas,Regional Directorate - UK Trade and Investments,LAZARUS SOLUTIONS LTD,132698,595
UK Trade and Investment,UK Trade and Investment Programme,6/22/2010,Entertainment UK,Defence and Security Organisation - UK Trade and Investments,ROYAL AIR FORCE CLUB,133198,652.7
UK Trade and Investment,UK Trade and Investment Programme,6/22/2010,Event Management,International Sectors Group - UK Trade and Investments,BLISS TRAVEL LTD,132592,"1,050.00"
UK Trade and Investment,UK Trade and Investment Programme,6/22/2010,Event Management,International Sectors Group - UK Trade and Investments,CHINA BRITAIN BUSINESS COUNCIL,133186,"5,000.00"
UK Trade and Investment,UK Trade and Investment Programme,6/22/2010,Event Management,International Sectors Group - UK Trade and Investments,CHINA BRITAIN BUSINESS COUNCIL,133186,809
UK Trade and Investment,UK Trade and Investment Programme,6/22/2010,Event Management,International Sectors Group - UK Trade and Investments,REED EXHIBITIONS LTD,133090,"4,000.00"
UK Trade and Investment,UK Trade and Investment Programme,6/22/2010,Stand Construction Costs,International Sectors Group - UK Trade and Investments,EXTREME EXHIBITIONS LTD,133181,"20,063.73"
UK Trade and Investment,UK Trade and Investment Programme,6/22/2010,Advertising,Marketing Directorate - UK Trade and Investments,FILM LONDON,133160,"5,000.00"
UK Trade and Investment,UK Trade and Investment Programme,6/22/2010,Photographic Services,Marketing Directorate - UK Trade and Investments,CRUZ IT LTD T/A CIT DIGITAL,133177,"3,000.00"
UK Trade and Investment,UK Trade and Investment Programme,6/22/2010,Video Production Services,International Sectors Group - UK Trade and Investments,CREATIVEWORKS PARTNERSHIP LLP,133021,"17,945.00"
UK Trade and Investment,UK Trade and Investment Programme,6/22/2010,Video Production Services,Marketing Directorate - UK Trade and Investments,MICK RAWSON,132963,"3,041.30"
UK Trade and Investment,UK Trade and Investment Programme,6/22/2010,Video Production Services,Marketing Directorate - UK Trade and Investments,S K & E S MAHER T/A SKM PRODUCTIONS,133196,987.92
UK Trade and Investment,UK Trade and Investment Programme,6/22/2010,Design Services,Defence and Security Organisation - UK Trade and Investments,RED STONE DESIGN LTD,133202,"4,565.50"
UK Trade and Investment,UK Trade and Investment Programme,6/22/2010,Design Services,Defence and Security Organisation - UK Trade and Investments,RED STONE DESIGN LTD,133201,907.5
UK Trade and Investment,UK Trade and Investment Programme,6/22/2010,Design Services,International Sectors Group - UK Trade and Investments,RED STONE DESIGN LTD,133092,"3,709.50"
UK Trade and Investment,UK Trade and Investment Programme,6/22/2010,Design Services,International Sectors Group - UK Trade and Investments,RED STONE DESIGN LTD,133091,"1,583.00"
UK Trade and Investment,UK Trade and Investment Programme,6/22/2010,Design Services,Marketing Directorate - UK Trade and Investments,NAVYBLUE DESIGN GROUP LTD,133015,"4,910.00"
UK Trade and Investment,UK Trade and Investment Programme,6/22/2010,Authoring and Copywriting Costs,Marketing Directorate - UK Trade and Investments,PSPRARE PUBLISHING LTD,133167,"1,148.00"
UK Trade and Investment,UK Trade and Investment Programme,6/22/2010,Outsourced Technical Support,International Sectors Group - UK Trade and Investments,KEPIER & COMPANY LTD,133020,"4,575.00"
UK Trade and Investment,UK Trade and Investment Programme,6/22/2010,Accountancy Services,Regional Directorate - UK Trade and Investments,EAST OF ENGLAND DEVELOPMENT AGENCY (EEDA),132870,"4,111.52"
UK Trade and Investment,UK Trade and Investment Programme,6/22/2010,Scheme Management Charges,Regional Directorate - UK Trade and Investments,GENERATOR POWER SERVICES LTD,132890,586.01
UK Trade and Investment,UK Trade and Investment Programme,6/22/2010,Scheme Management Charges,Regional Directorate - UK Trade and Investments,PHOBIX LTD,132893,"1,500.00"
UK Trade and Investment,UK Trade and Investment Programme,6/22/2010,Other IT Services,International Sectors Group - UK Trade and Investments,ITINERIS LTD,133019,"11,480.00"
UK Trade and Investment,UK Trade and Investment Programme,6/22/2010,Basic Grants,International Sectors Group - UK Trade and Investments,OASYS TECHNOLOGIES LTD,133055,"1,000.00"
UK Trade and Investment,UK Trade and Investment Programme,6/22/2010,Basic Grants,International Sectors Group - UK Trade and Investments,HYGAN PRODUCTS LTD,133089,"1,000.00"
UK Trade and Investment,UK Trade and Investment Programme,6/22/2010,Basic Grants,International Sectors Group - UK Trade and Investments,JESSE SHIRLEY & SON LTD,133086,"1,000.00"
UK Trade and Investment,UK Trade and Investment Programme,6/22/2010,Basic Grants,International Sectors Group - UK Trade and Investments,GLUTEN FREE FOODS LTD,133080,"1,000.00"
UK Trade and Investment,UK Trade and Investment Programme,6/22/2010,Scheme Management Charges,Regional Directorate - UK Trade and Investments,MIRAGE DENTAL PRODUCTS,132891,855.78
UK Trade and Investment,UK Trade and Investment Programme,6/22/2010,Scheme Management Charges,Regional Directorate - UK Trade and Investments,METALSCAN LTD T/A ARUN TECHNOLOGY,132757,"1,500.00"
UK Trade and Investment,UK Trade and Investment Programme,6/22/2010,Scheme Management Charges,Regional Directorate - UK Trade and Investments,MIDAS TECHNOLOGIES (GB) LTD,132887,618.54
UK Trade and Investment,UK Trade and Investment Programme,6/22/2010,Scheme Management Charges,Regional Directorate - UK Trade and Investments,PHOTONSTAR LED LTD,132884,"1,500.00"
UK Trade and Investment,UK Trade and Investment Programme,6/22/2010,Scheme Management Charges,Regional Directorate - UK Trade and Investments,FRANCIS FLOWER LTD,132881,"1,500.00"
UK Trade and Investment,UK Trade and Investment Programme,6/22/2010,Conference and seminar fees,International Sectors Group - UK Trade and Investments,UNIVERSITY OF HERTFORDSHIRE,133061,550
UK Trade and Investment,UK Trade and Investment Programme,6/22/2010,Conference and seminar fees,International Sectors Group - UK Trade and Investments,UNIVERSITY OF HERTFORDSHIRE,133061,550
UK Trade and Investment,UK Trade and Investment Programme,6/22/2010,Conference and seminar fees,International Sectors Group - UK Trade and Investments,UNIVERSITY OF HERTFORDSHIRE,133061,-550
UK Trade and Investment,UK Trade and Investment Programme,6/22/2010,IT software and licences,Marketing Directorate - UK Trade and Investments,CABLE & WIRELESS plc,131782,"3,780.00"
UK Trade and Investment,UK Trade and Investment Programme,6/22/2010,IT Managed Service Contracts,Marketing Directorate - UK Trade and Investments,CABLE & WIRELESS plc,131782,"9,490.04"
UK Trade and Investment,UK Trade and Investment Programme,6/23/2010,Basic Grants,International Sectors Group - UK Trade and Investments,THE FEDERATION OF SPORTS AND PLAY ASSOCIATIONS,133217,"9,000.00"
UK Trade and Investment,UK Trade and Investment Programme,6/23/2010,Sponsors Grants,International Sectors Group - UK Trade and Investments,THE FEDERATION OF SPORTS AND PLAY ASSOCIATIONS,133216,"2,115.00"
UK Trade and Investment,UK Trade and Investment Programme,6/23/2010,Travel and Subsistence O'seas,Regional Directorate - UK Trade and Investments,HAYMARKET NETWORK LTD,133018,730
UK Trade and Investment,UK Trade and Investment Programme,6/23/2010,Travel and Subsistence O'seas,Regional Directorate - UK Trade and Investments,GWE BUSINESS WEST LTD,133241,"2,000.00"
UK Trade and Investment,UK Trade and Investment Programme,6/23/2010,Training - General,Regional Directorate - UK Trade and Investments,GJ INTERNATIONAL LTD,133219,950
UK Trade and Investment,UK Trade and Investment Programme,6/23/2010,Training - General,Regional Directorate - UK Trade and Investments,GJ INTERNATIONAL LTD,133218,950
UK Trade and Investment,UK Trade and Investment Programme,6/23/2010,Training - General,Regional Directorate - UK Trade and Investments,JOHN HARRISON T/A INTERNATIONAL TRADE TRAINING & CONSULTANCY,133208,"1,227.00"
UK Trade and Investment,UK Trade and Investment Programme,6/23/2010,Training - General,Regional Directorate - UK Trade and Investments,GWE BUSINESS WEST LTD,132906,"8,438.04"
UK Trade and Investment,UK Trade and Investment Programme,6/23/2010,Event Management,International Sectors Group - UK Trade and Investments,LORRAINE ELLISON,133237,"1,110.59"
UK Trade and Investment,UK Trade and Investment Programme,6/23/2010,Event Management,International Sectors Group - UK Trade and Investments,ASSOCIATION OF BRITISH MINING EQUIPMENT COMPANIES,133211,"4,482.48"
UK Trade and Investment,UK Trade and Investment Programme,6/23/2010,Event Management,International Sectors Group - UK Trade and Investments,CEDAR COURT HOTEL,133210,638.57
UK Trade and Investment,UK Trade and Investment Programme,6/23/2010,Event Management,International Sectors Group - UK Trade and Investments,MARCH PUBLISHING LTD,133207,"1,500.00"
UK Trade and Investment,UK Trade and Investment Programme,6/23/2010,Venue Hire,Regional Directorate - UK Trade and Investments,THE CAMBRIDGE BELFRY HOTEL,133227,"1,473.19"
UK Trade and Investment,UK Trade and Investment Programme,6/23/2010,Venue Hire,Regional Directorate - UK Trade and Investments,THE CAMBRIDGE BELFRY HOTEL,133227,608
UK Trade and Investment,UK Trade and Investment Programme,6/23/2010,Venue Hire,Regional Directorate - UK Trade and Investments,GWE BUSINESS WEST LTD,132906,"5,000.00"
UK Trade and Investment,UK Trade and Investment Programme,6/23/2010,Printing Costs,Marketing Directorate - UK Trade and Investments,WHITEHOUSE MAINWARING DESIGN CONSULTANTS LTD,132854,"1,345.00"
UK Trade and Investment,UK Trade and Investment Programme,6/23/2010,Design Services,Defence and Security Organisation - UK Trade and Investments,RED STONE DESIGN LTD,133204,"2,610.00"
UK Trade and Investment,UK Trade and Investment Programme,6/23/2010,Design Services,Defence and Security Organisation - UK Trade and Investments,RED STONE DESIGN LTD,133203,"2,360.00"
UK Trade and Investment,UK Trade and Investment Programme,6/23/2010,Event Management,International Group - UK Trade and Investments,CHINA BRITAIN BUSINESS COUNCIL,133238,"12,633.30"
UK Trade and Investment,UK Trade and Investment Programme,6/23/2010,Translation/Interpretation services,Defence and Security Organisation - UK Trade and Investments,FCO SERVICES,133194,650
UK Trade and Investment,UK Trade and Investment Programme,6/23/2010,Translation/Interpretation services,Defence and Security Organisation - UK Trade and Investments,FCO SERVICES,133192,-650
UK Trade and Investment,UK Trade and Investment Programme,6/23/2010,Scheme Management Charges,Regional Directorate - UK Trade and Investments,EAST OF ENGLAND IDB LTD,133235,"157,491.00"
UK Trade and Investment,UK Trade and Investment Programme,6/23/2010,Scheme Management Charges,Regional Directorate - UK Trade and Investments,GWE BUSINESS WEST LTD,132906,"95,670.71"
UK Trade and Investment,UK Trade and Investment Programme,6/23/2010,Scheme Management Charges,Regional Directorate - UK Trade and Investments,GWE BUSINESS WEST LTD,132906,"1,625.00"
UK Trade and Investment,UK Trade and Investment Programme,6/23/2010,Scheme Management Charges,Regional Directorate - UK Trade and Investments,GWE BUSINESS WEST LTD,132906,"1,625.00"
UK Trade and Investment,UK Trade and Investment Programme,6/23/2010,Other IT Services,International Sectors Group - UK Trade and Investments,KEPIER & COMPANY LTD,133220,"2,026.88"
UK Trade and Investment,UK Trade and Investment Programme,6/23/2010,IT Managed Service Contracts,IT and Finance Group - UK Trade and Investments,FUJITSU SERVICES LTD,132896,745.2
UK Trade and Investment,UK Trade and Investment Programme,6/23/2010,IT Managed Service Contracts,IT and Finance Group - UK Trade and Investments,FUJITSU SERVICES LTD,132896,761.4
UK Trade and Investment,UK Trade and Investment Programme,6/23/2010,IT Managed Service Contracts,IT and Finance Group - UK Trade and Investments,FUJITSU SERVICES LTD,132896,-761.4
UK Trade and Investment,UK Trade and Investment Programme,6/23/2010,Basic Grants,International Sectors Group - UK Trade and Investments,VISIT BRITAIN,133229,"1,000.00"
UK Trade and Investment,UK Trade and Investment Programme,6/23/2010,Travel and Subsistence O'seas,Regional Directorate - UK Trade and Investments,CERI HAND GALLERY LTD,133222,500
UK Trade and Investment,UK Trade and Investment Programme,6/23/2010,Basic Grants,International Sectors Group - UK Trade and Investments,FIRE INDUSTRY ASSOCIATION LTD,133223,"14,000.00"
UK Trade and Investment,UK Trade and Investment Programme,6/23/2010,Salaries and Wages,Regional Directorate - UK Trade and Investments,LEARNING IMPACT INTERNATIONAL LTD,133234,"2,626.23"
UK Trade and Investment,UK Trade and Investment Programme,6/23/2010,Training - General,Regional Directorate - UK Trade and Investments,LEARNING IMPACT INTERNATIONAL LTD,133236,"2,425.50"
UK Trade and Investment,UK Trade and Investment Programme,6/23/2010,Car Hire and Leasing,Defence and Security Organisation - UK Trade and Investments,GOVERNMENT CAR AND DESPATCH AGENCY,133214,"1,116.49"
UK Trade and Investment,UK Trade and Investment Programme,6/23/2010,Car Hire and Leasing,Defence and Security Organisation - UK Trade and Investments,GOVERNMENT CAR AND DESPATCH AGENCY,133215,761
UK Trade and Investment,UK Trade and Investment Programme,6/23/2010,Car Hire and Leasing,Defence and Security Organisation - UK Trade and Investments,GOVERNMENT CAR AND DESPATCH AGENCY,133214,"1,031.59"
UK Trade and Investment,UK Trade and Investment Programme,6/24/2010,Catering,Regional Directorate - UK Trade and Investments,"Personal Expense, Name Witheld",504975,674.45
UK Trade and Investment,UK Trade and Investment Programme,6/24/2010,Travel and Subsistence O'seas,International Group - UK Trade and Investments,FOREIGN AND COMMONWEALTH OFFICE (FCO),132259,"1,025.98"
UK Trade and Investment,UK Trade and Investment Programme,6/24/2010,Travel and Subsistence O'seas,Strategy and Human Resources Group - UK Trade and Investments,FOREIGN AND COMMONWEALTH OFFICE (FCO),132253,"4,241.43"
UK Trade and Investment,UK Trade and Investment Programme,6/24/2010,Travel and Subsistence O'seas,Strategy and Human Resources Group - UK Trade and Investments,FOREIGN AND COMMONWEALTH OFFICE (FCO),132254,"1,009.55"
UK Trade and Investment,UK Trade and Investment Programme,6/24/2010,Training - General,Business Group - UK Trade and Investments,THE FINANCIAL TIMES LTD,133259,500
UK Trade and Investment,UK Trade and Investment Programme,6/24/2010,Event Management,Business Group - UK Trade and Investments,BRACKEN PRESENTATIONS LTD,132873,"2,550.00"
UK Trade and Investment,UK Trade and Investment Programme,6/24/2010,Event Management,International Sectors Group - UK Trade and Investments,ANDRICH INTERNATIONAL LTD,133271,"4,112.50"
UK Trade and Investment,UK Trade and Investment Programme,6/24/2010,Event Management,International Sectors Group - UK Trade and Investments,FOREIGN AND COMMONWEALTH OFFICE (FCO),132241,"1,683.88"
UK Trade and Investment,UK Trade and Investment Programme,6/24/2010,Event Management,International Sectors Group - UK Trade and Investments,FOREIGN AND COMMONWEALTH OFFICE (FCO),132242,"5,781.74"
UK Trade and Investment,UK Trade and Investment Programme,6/24/2010,Event Management,International Sectors Group - UK Trade and Investments,FOREIGN AND COMMONWEALTH OFFICE (FCO),132251,"1,260.96"
UK Trade and Investment,UK Trade and Investment Programme,6/24/2010,Event Management,International Sectors Group - UK Trade and Investments,FOREIGN AND COMMONWEALTH OFFICE (FCO),132252,"6,037.35"
UK Trade and Investment,UK Trade and Investment Programme,6/24/2010,Event Management,International Sectors Group - UK Trade and Investments,FOREIGN AND COMMONWEALTH OFFICE (FCO),132265,"1,901.98"
UK Trade and Investment,UK Trade and Investment Programme,6/24/2010,Event Management,International Sectors Group - UK Trade and Investments,FOREIGN AND COMMONWEALTH OFFICE (FCO),132275,"4,611.97"
UK Trade and Investment,UK Trade and Investment Programme,6/24/2010,Event Management,International Sectors Group - UK Trade and Investments,FOREIGN AND COMMONWEALTH OFFICE (FCO),132278,"7,639.27"
UK Trade and Investment,UK Trade and Investment Programme,6/24/2010,Event Management,International Sectors Group - UK Trade and Investments,FOREIGN AND COMMONWEALTH OFFICE (FCO),132279,909.44
UK Trade and Investment,UK Trade and Investment Programme,6/24/2010,Event Management,Marketing Directorate - UK Trade and Investments,FOREIGN AND COMMONWEALTH OFFICE (FCO),132248,"3,927.83"
UK Trade and Investment,UK Trade and Investment Programme,6/24/2010,Event Management,Marketing Directorate - UK Trade and Investments,FOREIGN AND COMMONWEALTH OFFICE (FCO),132260,604.15
UK Trade and Investment,UK Trade and Investment Programme,6/24/2010,Event Management,Marketing Directorate - UK Trade and Investments,FOREIGN AND COMMONWEALTH OFFICE (FCO),132271,527.35
UK Trade and Investment,UK Trade and Investment Programme,6/24/2010,Event Management,Marketing Directorate - UK Trade and Investments,FOREIGN AND COMMONWEALTH OFFICE (FCO),132273,"3,464.52"
UK Trade and Investment,UK Trade and Investment Programme,6/24/2010,Event Management,Marketing Directorate - UK Trade and Investments,FOREIGN AND COMMONWEALTH OFFICE (FCO),132274,"6,929.05"
UK Trade and Investment,UK Trade and Investment Programme,6/24/2010,Catering,International Sectors Group - UK Trade and Investments,FOREIGN AND COMMONWEALTH OFFICE (FCO),132277,"1,748.42"
UK Trade and Investment,UK Trade and Investment Programme,6/24/2010,Catering,International Sectors Group - UK Trade and Investments,FOREIGN AND COMMONWEALTH OFFICE (FCO),132277,"1,057.39"
UK Trade and Investment,UK Trade and Investment Programme,6/24/2010,Advertising,International Sectors Group - UK Trade and Investments,FOREIGN AND COMMONWEALTH OFFICE (FCO),132240,"3,650.00"
UK Trade and Investment,UK Trade and Investment Programme,6/24/2010,Advertising,Marketing Directorate - UK Trade and Investments,FOREIGN AND COMMONWEALTH OFFICE (FCO),132280,909.44
UK Trade and Investment,UK Trade and Investment Programme,6/24/2010,Advertising,Marketing Directorate - UK Trade and Investments,FOREIGN AND COMMONWEALTH OFFICE (FCO),132281,"1,403.13"
UK Trade and Investment,UK Trade and Investment Programme,6/24/2010,Sponsorship,Regional Directorate - UK Trade and Investments,FOREIGN AND COMMONWEALTH OFFICE (FCO),132228,"2,639.04"
UK Trade and Investment,UK Trade and Investment Programme,6/24/2010,Printing Costs,Marketing Directorate - UK Trade and Investments,BELLMAN MEDIA LTD,133197,"2,401.00"
UK Trade and Investment,UK Trade and Investment Programme,6/24/2010,Design Services,Regional Directorate - UK Trade and Investments,CHRISTINA SHINGLER,133258,"1,500.00"
UK Trade and Investment,UK Trade and Investment Programme,6/24/2010,Media and Press Services,Marketing Directorate - UK Trade and Investments,FOREIGN AND COMMONWEALTH OFFICE (FCO),132256,980.13
UK Trade and Investment,UK Trade and Investment Programme,6/24/2010,Scheme Management Charges,Business Group - UK Trade and Investments,PERA INNOVATION LTD,133242,"325,386.17"
UK Trade and Investment,UK Trade and Investment Programme,6/24/2010,Scheme Management Charges,Business Group - UK Trade and Investments,PERA INNOVATION LTD,133253,"26,061.44"
UK Trade and Investment,UK Trade and Investment Programme,6/24/2010,Scheme Management Charges,Regional Directorate - UK Trade and Investments,VCGI LTD,132977,"1,500.00"
UK Trade and Investment,UK Trade and Investment Programme,6/24/2010,Scheme Management Charges,Regional Directorate - UK Trade and Investments,VIRTUAL HUMAN RESOURCES LTD,132866,"1,000.00"
UK Trade and Investment,UK Trade and Investment Programme,6/24/2010,Scheme Management Charges,Regional Directorate - UK Trade and Investments,VIRTUAL HUMAN RESOURCES LTD,132867,500
UK Trade and Investment,UK Trade and Investment Programme,6/24/2010,Scheme Management Charges,Regional Directorate - UK Trade and Investments,THE BRITISH CHAMBERS OF COMMERCE,133269,"7,750.00"
UK Trade and Investment,UK Trade and Investment Programme,6/24/2010,Scheme Management Charges,Regional Directorate - UK Trade and Investments,THE BRITISH CHAMBERS OF COMMERCE,133272,"49,708.00"
UK Trade and Investment,UK Trade and Investment Programme,6/24/2010,Travel and Subsistence O'seas,Regional Directorate - UK Trade and Investments,BLUEBERRY TRAINING LTD,133268,500
UK Trade and Investment,UK Trade and Investment Programme,6/24/2010,Scheme Management Charges,Regional Directorate - UK Trade and Investments,ROCK ASPHALTE,132979,500
UK Trade and Investment,UK Trade and Investment Programme,6/24/2010,Scheme Management Charges,Regional Directorate - UK Trade and Investments,YVA SOLICITORS,132868,655
UK Trade and Investment,UK Trade and Investment Programme,6/24/2010,Scheme Management Charges,Regional Directorate - UK Trade and Investments,CHELTENHAM YOGA,133048,881.23
UK Trade and Investment,UK Trade and Investment Programme,6/24/2010,Scheme Management Charges,Regional Directorate - UK Trade and Investments,PREMIER SEPARATOR SERVICES LTD,132756,997.5
UK Trade and Investment,UK Trade and Investment Programme,6/24/2010,Scheme Management Charges,Regional Directorate - UK Trade and Investments,NATURAL SCENICS LTD,132885,"1,500.00"
UK Trade and Investment,UK Trade and Investment Programme,6/24/2010,Scheme Management Charges,Regional Directorate - UK Trade and Investments,JOELSON WILSON LLP,132880,500
UK Trade and Investment,UK Trade and Investment Programme,6/24/2010,Event Management,International Sectors Group - UK Trade and Investments,BIOINDUSTRY ASSOCIATION,133200,"8,000.00"
UK Trade and Investment,UK Trade and Investment Programme,6/25/2010,Travel and Subsistence O'seas,International Sectors Group - UK Trade and Investments,"Personal Expense, Name Witheld",504976,"1,127.21"
UK Trade and Investment,UK Trade and Investment Programme,6/25/2010,Fees and Charges,Regional Directorate - UK Trade and Investments,FRONTIER SOFTWARE PLC,133260,851.06
UK Trade and Investment,UK Trade and Investment Programme,6/25/2010,Basic Grants,International Sectors Group - UK Trade and Investments,CLIFTON PACKAGING GROUP PLC,133293,"1,000.00"
UK Trade and Investment,UK Trade and Investment Programme,6/25/2010,Basic Grants,International Sectors Group - UK Trade and Investments,MEDIA TRAINING MASTERCLASSES LTD,133299,"1,000.00"
UK Trade and Investment,UK Trade and Investment Programme,6/25/2010,Basic Grants,International Sectors Group - UK Trade and Investments,DUNCAN NDEGWA T/A NDESCAN SERVICES,133290,"1,000.00"
UK Trade and Investment,UK Trade and Investment Programme,6/25/2010,Basic Grants,International Sectors Group - UK Trade and Investments,MELISSA SIMPSON,133289,"1,000.00"
UK Trade and Investment,UK Trade and Investment Programme,6/25/2010,Basic Grants,International Sectors Group - UK Trade and Investments,BIRMINGHAM CHAMBER OF COMMERCE & INDUSTRY,133318,"8,000.00"
UK Trade and Investment,UK Trade and Investment Programme,6/25/2010,Basic Grants,International Sectors Group - UK Trade and Investments,MEDILINK (YORKSHIRE AND HUMBER) LTD,133303,"13,000.00"
UK Trade and Investment,UK Trade and Investment Programme,6/25/2010,Sponsors Grants,International Sectors Group - UK Trade and Investments,BIRMINGHAM CHAMBER OF COMMERCE & INDUSTRY,133317,"1,880.00"
UK Trade and Investment,UK Trade and Investment Programme,6/25/2010,Sponsors Grants,International Sectors Group - UK Trade and Investments,MEDILINK (YORKSHIRE AND HUMBER) LTD,133304,"3,055.00"
UK Trade and Investment,UK Trade and Investment Programme,6/25/2010,Training - General,Regional Directorate - UK Trade and Investments,QED CONSULTING,133281,"7,480.00"
UK Trade and Investment,UK Trade and Investment Programme,6/25/2010,Training - Languages,International Sectors Group - UK Trade and Investments,COMMUNICAID GROUP LTD,133314,"1,150.00"
UK Trade and Investment,UK Trade and Investment Programme,6/25/2010,Event Management,International Sectors Group - UK Trade and Investments,FILM LONDON,133283,"5,000.00"
UK Trade and Investment,UK Trade and Investment Programme,6/25/2010,Event Management,International Sectors Group - UK Trade and Investments,VENN GROUP LTD,133333,"1,250.05"
UK Trade and Investment,UK Trade and Investment Programme,6/25/2010,Event Management,International Sectors Group - UK Trade and Investments,VENN GROUP LTD,133333,"1,249.94"
UK Trade and Investment,UK Trade and Investment Programme,6/25/2010,Event Management,International Sectors Group - UK Trade and Investments,NAVYBLUE DESIGN GROUP LTD,133296,"1,120.00"
UK Trade and Investment,UK Trade and Investment Programme,6/25/2010,Venue Hire,Regional Directorate - UK Trade and Investments,NSPCC,133285,722.5
UK Trade and Investment,UK Trade and Investment Programme,6/25/2010,Venue Hire,Regional Directorate - UK Trade and Investments,MARRIOTT LEICESTER,133280,510.65
UK Trade and Investment,UK Trade and Investment Programme,6/25/2010,Catering,Business Group - UK Trade and Investments,TATE ENTERPRISES LTD T/A TATE CATERING,133276,"6,517.39"
UK Trade and Investment,UK Trade and Investment Programme,6/25/2010,Catering,International Sectors Group - UK Trade and Investments,COPTHORNE TARA HOTEL,133279,"1,466.89"
UK Trade and Investment,UK Trade and Investment Programme,6/25/2010,Other Transportation Hire,International Group - UK Trade and Investments,PULLMANOR LTD T/A REDWING COACHES,133337,"2,000.00"
UK Trade and Investment,UK Trade and Investment Programme,6/25/2010,Online Services charges,International Sectors Group - UK Trade and Investments,NAVYBLUE DESIGN GROUP LTD,133297,"1,120.00"
UK Trade and Investment,UK Trade and Investment Programme,6/25/2010,Printed Publications,Marketing Directorate - UK Trade and Investments,PSPRARE PUBLISHING LTD,133282,"38,923.00"
UK Trade and Investment,UK Trade and Investment Programme,6/25/2010,Media and Press Services,Marketing Directorate - UK Trade and Investments,PRESS ASSOCIATION LTD,133275,"4,512.60"
UK Trade and Investment,UK Trade and Investment Programme,6/25/2010,Research and Development Costs,Business Group - UK Trade and Investments,FUSE 8 LTD,133228,"4,450.00"
UK Trade and Investment,UK Trade and Investment Programme,6/25/2010,Research and Development Costs,Marketing Directorate - UK Trade and Investments,OIA LTD,133277,"48,125.00"
UK Trade and Investment,UK Trade and Investment Programme,6/25/2010,Scheme Management Charges,Regional Directorate - UK Trade and Investments,THE BRITISH CHAMBERS OF COMMERCE,133274,"50,000.00"
UK Trade and Investment,UK Trade and Investment Programme,6/25/2010,Scheme Management Charges,Regional Directorate - UK Trade and Investments,THE BRITISH CHAMBERS OF COMMERCE,133284,"12,250.00"
UK Trade and Investment,UK Trade and Investment Programme,6/25/2010,Basic Grants,International Sectors Group - UK Trade and Investments,THE BRITISH TEXEL SHEEP SOCIETY LTD,133291,"1,000.00"
UK Trade and Investment,UK Trade and Investment Programme,6/25/2010,Basic Grants,International Sectors Group - UK Trade and Investments,S & P COIL PRODUCTS LTD,133288,"1,000.00"
UK Trade and Investment,UK Trade and Investment Programme,6/25/2010,Basic Grants,International Sectors Group - UK Trade and Investments,CERAMIC GAS PRODUCTS LTD,133298,"1,000.00"
UK Trade and Investment,UK Trade and Investment Programme,6/25/2010,Basic Grants,International Sectors Group - UK Trade and Investments,LINCOLN DIESEL SPARES LTD,133295,"1,000.00"
UK Trade and Investment,UK Trade and Investment Programme,6/25/2010,Basic Grants,International Sectors Group - UK Trade and Investments,BRYAN & CHERRY ALEXANDER T/A ARCTICPHOTO,133292,"1,000.00"
UK Trade and Investment,UK Trade and Investment Programme,6/25/2010,Basic Grants,International Sectors Group - UK Trade and Investments,UNIQSIS LTD,133300,"1,000.00"
UK Trade and Investment,UK Trade and Investment Programme,6/25/2010,Basic Grants,International Sectors Group - UK Trade and Investments,HANSFORD SENSORS LTD,133294,"1,000.00"
UK Trade and Investment,UK Trade and Investment Programme,6/25/2010,Basic Grants,International Sectors Group - UK Trade and Investments,BRITISH PIG ASSOCIATION,133313,"19,800.00"
UK Trade and Investment,UK Trade and Investment Programme,6/25/2010,Sponsors Grants,International Sectors Group - UK Trade and Investments,BRITISH PIG ASSOCIATION,133312,"2,585.00"
UK Trade and Investment,UK Trade and Investment Programme,6/25/2010,Travel and Subsistence O'seas,Regional Directorate - UK Trade and Investments,AGENDA RESOURCE MANAGEMENT LTD,133323,860
UK Trade and Investment,UK Trade and Investment Programme,6/25/2010,Basic Grants,International Sectors Group - UK Trade and Investments,BRITISH JEWELLERY AND GIFTWARE FEDERATION,133302,"5,600.00"
UK Trade and Investment,UK Trade and Investment Programme,6/25/2010,Basic Grants,International Sectors Group - UK Trade and Investments,GARDENEX,133316,"48,000.00"
UK Trade and Investment,UK Trade and Investment Programme,6/25/2010,Basic Grants,International Sectors Group - UK Trade and Investments,THE PUBLISHERS ASSOCIATION,133306,"16,800.00"
UK Trade and Investment,UK Trade and Investment Programme,6/25/2010,Basic Grants,International Sectors Group - UK Trade and Investments,CIRCUIT EQUIPMENT & MATERIALS ASSOCIATION,133319,"1,000.00"
UK Trade and Investment,UK Trade and Investment Programme,6/25/2010,Basic Grants,International Sectors Group - UK Trade and Investments,UK FASHION AND TEXTILE ASSOCIATION LTD (UKFT),133324,"22,000.00"
UK Trade and Investment,UK Trade and Investment Programme,6/25/2010,Basic Grants,International Sectors Group - UK Trade and Investments,ELECTRONIC EXPORTERS GROUP,133321,"7,000.00"
UK Trade and Investment,UK Trade and Investment Programme,6/25/2010,Sponsors Grants,International Sectors Group - UK Trade and Investments,BRITISH JEWELLERY AND GIFTWARE FEDERATION,133301,940
UK Trade and Investment,UK Trade and Investment Programme,6/25/2010,Sponsors Grants,International Sectors Group - UK Trade and Investments,GARDENEX,133315,"28,905.00"
UK Trade and Investment,UK Trade and Investment Programme,6/25/2010,Sponsors Grants,International Sectors Group - UK Trade and Investments,THE PUBLISHERS ASSOCIATION,133305,"2,820.00"
UK Trade and Investment,UK Trade and Investment Programme,6/25/2010,Sponsors Grants,International Sectors Group - UK Trade and Investments,UK FASHION AND TEXTILE ASSOCIATION LTD (UKFT),133330,"5,170.00"
UK Trade and Investment,UK Trade and Investment Programme,6/25/2010,Sponsors Grants,International Sectors Group - UK Trade and Investments,ELECTRONIC EXPORTERS GROUP,133322,"1,645.00"
UK Trade and Investment,UK Trade and Investment Programme,6/28/2010,Salaries and Wages,Marketing Directorate - UK Trade and Investments,JAMIE OLIVER,133340,"1,250.00"
UK Trade and Investment,UK Trade and Investment Programme,6/28/2010,Salaries and Wages,Marketing Directorate - UK Trade and Investments,ADECCO UK LTD,133308,950.67
UK Trade and Investment,UK Trade and Investment Programme,6/28/2010,Travel and Subsistence O'seas,Regional Directorate - UK Trade and Investments,RESEARCHSEA LTD,133363,775
UK Trade and Investment,UK Trade and Investment Programme,6/28/2010,Other Accomodation costs,Business Group - UK Trade and Investments,CITY INN WESTMINSTER,133347,"6,207.53"
UK Trade and Investment,UK Trade and Investment Programme,6/28/2010,Event Management,International Group - UK Trade and Investments,ASIA HOUSE ENTERPRISES LTD,133339,"2,000.00"
UK Trade and Investment,UK Trade and Investment Programme,6/28/2010,Event Management,International Group - UK Trade and Investments,ASIA HOUSE ENTERPRISES LTD,133338,703
UK Trade and Investment,UK Trade and Investment Programme,6/28/2010,Event Management,International Sectors Group - UK Trade and Investments,Qi3 LTD,133346,"7,950.00"
UK Trade and Investment,UK Trade and Investment Programme,6/28/2010,Venue Hire,Regional Directorate - UK Trade and Investments,COMPASS GROUP UK,133345,859
UK Trade and Investment,UK Trade and Investment Programme,6/28/2010,Sponsorship,Regional Directorate - UK Trade and Investments,NEWSCO INSIDER LTD,133354,"1,500.00"
UK Trade and Investment,UK Trade and Investment Programme,6/28/2010,Promotional Materials,International Sectors Group - UK Trade and Investments,ONE NUCLEUS LTD,133257,"3,525.00"
UK Trade and Investment,UK Trade and Investment Programme,6/28/2010,Video Production Services,Regional Directorate - UK Trade and Investments,FREEWAY IP VIDEO,133343,"2,500.00"
UK Trade and Investment,UK Trade and Investment Programme,6/28/2010,Research & Development,Economics and Evaluation - UK Trade and Investments,RICK DENT & JOHN MADDEN T/A RSM,133341,"5,500.00"
UK Trade and Investment,UK Trade and Investment Programme,6/28/2010,Event Management,Regional Directorate - UK Trade and Investments,BRITISH AND COLOMBIAN CHAMBER OF COMMERCE,133224,"3,900.00"
UK Trade and Investment,UK Trade and Investment Programme,6/28/2010,Event Management,Regional Directorate - UK Trade and Investments,BRITISH AND COLOMBIAN CHAMBER OF COMMERCE,133224,900
UK Trade and Investment,UK Trade and Investment Programme,6/28/2010,Event Management,Regional Directorate - UK Trade and Investments,BRITISH AND COLOMBIAN CHAMBER OF COMMERCE,133224,-900
UK Trade and Investment,UK Trade and Investment Programme,6/28/2010,Event Management,Regional Directorate - UK Trade and Investments,BRITISH AND COLOMBIAN CHAMBER OF COMMERCE,133224,900
UK Trade and Investment,UK Trade and Investment Programme,6/28/2010,Event Management,Regional Directorate - UK Trade and Investments,BRITISH AND COLOMBIAN CHAMBER OF COMMERCE,133224,-900
UK Trade and Investment,UK Trade and Investment Programme,6/28/2010,Event Management,Regional Directorate - UK Trade and Investments,BRITISH AND COLOMBIAN CHAMBER OF COMMERCE,133224,900
UK Trade and Investment,UK Trade and Investment Programme,6/29/2010,Basic Grants,International Sectors Group - UK Trade and Investments,ENGINEERING INDUSTRIES ASSOCIATION,133400,"7,000.00"
UK Trade and Investment,UK Trade and Investment Programme,6/29/2010,Sponsors Grants,International Sectors Group - UK Trade and Investments,ENGINEERING INDUSTRIES ASSOCIATION,133402,"1,175.00"
UK Trade and Investment,UK Trade and Investment Programme,6/29/2010,Salaries and Wages,Marketing Directorate - UK Trade and Investments,BROOK STREET (UK) LTD,133398,747.3
UK Trade and Investment,UK Trade and Investment Programme,6/29/2010,Salaries and Wages,Marketing Directorate - UK Trade and Investments,STOPGAP LTD,133360,"4,614.23"
UK Trade and Investment,UK Trade and Investment Programme,6/29/2010,Salaries and Wages,Regional Directorate - UK Trade and Investments,NORTH EAST REGIONAL INTERNATIONAL TRADE OFFICE LTD,133407,"3,068.82"
UK Trade and Investment,UK Trade and Investment Programme,6/29/2010,Salaries and Wages,Regional Directorate - UK Trade and Investments,BIRMINGHAM CHAMBER OF COMMERCE AND INDUSTRY,133381,"2,056.25"
UK Trade and Investment,UK Trade and Investment Programme,6/29/2010,Salaries and Wages,Regional Directorate - UK Trade and Investments,BIRMINGHAM CHAMBER OF COMMERCE AND INDUSTRY,133381,"9,078.31"
UK Trade and Investment,UK Trade and Investment Programme,6/29/2010,Travel and Subsistence O'seas,Regional Directorate - UK Trade and Investments,MARTA PONTI T/A FONZ LEATHER STYLES,133386,550
UK Trade and Investment,UK Trade and Investment Programme,6/29/2010,Travel and Subsistence O'seas,Regional Directorate - UK Trade and Investments,THE NATURAL DYE STUDIO LTD,133392,500
UK Trade and Investment,UK Trade and Investment Programme,6/29/2010,Travel and Subsistence O'seas,Regional Directorate - UK Trade and Investments,CAPPEL NORROW LTD T/A CN PACKAGING,133391,500
UK Trade and Investment,UK Trade and Investment Programme,6/29/2010,Training - General,Regional Directorate - UK Trade and Investments,NORTH EAST REGIONAL INTERNATIONAL TRADE OFFICE LTD,133407,"2,103.95"
UK Trade and Investment,UK Trade and Investment Programme,6/29/2010,Rental of Accomodation,Defence and Security Organisation - UK Trade and Investments,EVENTS IN FOCUS LTD,133199,"25,160.00"
UK Trade and Investment,UK Trade and Investment Programme,6/29/2010,Event Management,International Group - UK Trade and Investments,CHINA BRITAIN BUSINESS COUNCIL,133411,500
UK Trade and Investment,UK Trade and Investment Programme,6/29/2010,Event Management,International Sectors Group - UK Trade and Investments,OAKLEY ASSOCIATES LTD,133367,"3,720.00"
UK Trade and Investment,UK Trade and Investment Programme,6/29/2010,Event Management,International Sectors Group - UK Trade and Investments,VENN GROUP LTD,133335,"1,999.99"
UK Trade and Investment,UK Trade and Investment Programme,6/29/2010,Event Management,International Sectors Group - UK Trade and Investments,VENN GROUP LTD,133334,"2,499.99"
UK Trade and Investment,UK Trade and Investment Programme,6/29/2010,Event Management,International Sectors Group - UK Trade and Investments,ADS GROUP LTD,133405,"9,568.14"
UK Trade and Investment,UK Trade and Investment Programme,6/29/2010,Event Management,International Sectors Group - UK Trade and Investments,ADS GROUP LTD,133405,"4,000.00"
UK Trade and Investment,UK Trade and Investment Programme,6/29/2010,Event Management,International Sectors Group - UK Trade and Investments,MARCH PUBLISHING LTD,132874,"25,870.00"
UK Trade and Investment,UK Trade and Investment Programme,6/29/2010,Event Management,Regional Directorate - UK Trade and Investments,NORTH EAST REGIONAL INTERNATIONAL TRADE OFFICE LTD,133407,756.63
UK Trade and Investment,UK Trade and Investment Programme,6/29/2010,Venue Hire,International Group - UK Trade and Investments,THOMAS TELFORD LTD T/A ONE GREAT GEORGE STREET,133403,"2,157.50"
UK Trade and Investment,UK Trade and Investment Programme,6/29/2010,Venue Hire,Regional Directorate - UK Trade and Investments,MARRIOTT LEICESTER,133365,800
UK Trade and Investment,UK Trade and Investment Programme,6/29/2010,Venue Hire,Regional Directorate - UK Trade and Investments,YEW LODGE HOTEL,133393,"1,234.04"
UK Trade and Investment,UK Trade and Investment Programme,6/29/2010,Venue Hire,Regional Directorate - UK Trade and Investments,YEW LODGE HOTEL,133364,607.66
UK Trade and Investment,UK Trade and Investment Programme,6/29/2010,Advertising,Regional Directorate - UK Trade and Investments,THE SHOW DAILY LTD,133385,"1,500.00"
UK Trade and Investment,UK Trade and Investment Programme,6/29/2010,Promotional Materials,Marketing Directorate - UK Trade and Investments,AWARE PROMOTIONAL MERCHANDISE LTD,133404,"5,346.25"
UK Trade and Investment,UK Trade and Investment Programme,6/29/2010,Printing Costs,Business Group - UK Trade and Investments,CREST COMMUNICATIONS (PR) LTD,133380,"1,350.00"
UK Trade and Investment,UK Trade and Investment Programme,6/29/2010,Video Production Services,Marketing Directorate - UK Trade and Investments,CREATIVEWORKS PARTNERSHIP LLP,133394,"22,500.00"
UK Trade and Investment,UK Trade and Investment Programme,6/29/2010,Scheme Management Charges,Business Group - UK Trade and Investments,PERA INNOVATION LTD,133370,"126,743.26"
UK Trade and Investment,UK Trade and Investment Programme,6/29/2010,Research & Development,Economics and Evaluation - UK Trade and Investments,MARK ROGERS,133355,"11,200.00"
UK Trade and Investment,UK Trade and Investment Programme,6/29/2010,Scheme Management Charges,International Sectors Group - UK Trade and Investments,PERA INNOVATION LTD,133416,"149,378.08"
UK Trade and Investment,UK Trade and Investment Programme,6/29/2010,Scheme Management Charges,Regional Directorate - UK Trade and Investments,NORTH EAST REGIONAL INTERNATIONAL TRADE OFFICE LTD,133412,"78,759.25"
UK Trade and Investment,UK Trade and Investment Programme,6/29/2010,Scheme Management Charges,Regional Directorate - UK Trade and Investments,DANLERS LTD,133252,"1,500.00"
UK Trade and Investment,UK Trade and Investment Programme,6/29/2010,Scheme Management Charges,Regional Directorate - UK Trade and Investments,ACECAD SOFTWARE LTD,133245,"1,500.00"
UK Trade and Investment,UK Trade and Investment Programme,6/29/2010,Scheme Management Charges,Regional Directorate - UK Trade and Investments,HARRISON DESIGN COMPANY LTD,133254,"1,500.00"
UK Trade and Investment,UK Trade and Investment Programme,6/29/2010,Development Cost - Website (AUC) - Clearing Account,Strategy and Human Resources Group - UK Trade and Investments,MORGAN HUNT PUBLIC SECTOR LTD,133326,564
UK Trade and Investment,UK Trade and Investment Programme,6/29/2010,Conference and seminar fees,Business Group - UK Trade and Investments,RENEWABLE UK ASSOCIATION,133378,988.95
UK Trade and Investment,UK Trade and Investment Programme,6/29/2010,Scheme Management Charges,Regional Directorate - UK Trade and Investments,CHARNWOOD WOODWORKING,133246,"1,500.00"
UK Trade and Investment,UK Trade and Investment Programme,6/29/2010,Scheme Management Charges,Regional Directorate - UK Trade and Investments,TRADE DIET PLATE LTD,133247,"1,500.00"
UK Trade and Investment,UK Trade and Investment Programme,6/29/2010,Scheme Management Charges,Regional Directorate - UK Trade and Investments,FLEXIBLE MEDICAL PACKAGING LTD,133244,"1,500.00"
UK Trade and Investment,UK Trade and Investment Programme,6/29/2010,Scheme Management Charges,Regional Directorate - UK Trade and Investments,AUTOMOTIVE INSULATIONS LTD,133262,885.52
UK Trade and Investment,UK Trade and Investment Programme,6/29/2010,Scheme Management Charges,Regional Directorate - UK Trade and Investments,ADP ARCHITECTS,133263,"1,306.00"
UK Trade and Investment,UK Trade and Investment Programme,6/29/2010,Travel and Subsistence O'seas,Regional Directorate - UK Trade and Investments,NORTH STAFFORDSHIRE CHAMBER OF COMMERCE AND INDUSTRY,133387,500
UK Trade and Investment,UK Trade and Investment Programme,6/30/2010,Basic Grants,International Sectors Group - UK Trade and Investments,AGENCY RUSH LTD,133460,"1,000.00"
UK Trade and Investment,UK Trade and Investment Programme,6/30/2010,Basic Grants,International Sectors Group - UK Trade and Investments,SHORTS SPACE LTD,133459,"1,000.00"
UK Trade and Investment,UK Trade and Investment Programme,6/30/2010,Basic Grants,International Sectors Group - UK Trade and Investments,BIRMINGHAM CHAMBER OF COMMERCE & INDUSTRY,133437,"9,000.00"
UK Trade and Investment,UK Trade and Investment Programme,6/30/2010,Basic Grants,International Sectors Group - UK Trade and Investments,BIRMINGHAM CHAMBER OF COMMERCE & INDUSTRY,133437,"1,000.00"
UK Trade and Investment,UK Trade and Investment Programme,6/30/2010,Sponsors Grants,International Group - UK Trade and Investments,CHINA BRITAIN BUSINESS COUNCIL,133240,"474,199.00"
UK Trade and Investment,UK Trade and Investment Programme,6/30/2010,Sponsors Grants,International Sectors Group - UK Trade and Investments,BIRMINGHAM CHAMBER OF COMMERCE & INDUSTRY,133438,"2,115.00"
UK Trade and Investment,UK Trade and Investment Programme,6/30/2010,Travel and Subsistence O'seas,Regional Directorate - UK Trade and Investments,CATALYST REGENERATION UK LTD,133456,500
UK Trade and Investment,UK Trade and Investment Programme,6/30/2010,Event Management,International Sectors Group - UK Trade and Investments,FOREIGN AND COMMONWEALTH OFFICE (FCO),133415,630.07
UK Trade and Investment,UK Trade and Investment Programme,6/30/2010,Venue Hire,Regional Directorate - UK Trade and Investments,MAPLE HOTELS 1 LTD T/A HILTON SWINDON,133452,631.49
UK Trade and Investment,UK Trade and Investment Programme,6/30/2010,Venue Hire,Regional Directorate - UK Trade and Investments,SHIRE HOTELS LTD,133453,504.82
UK Trade and Investment,UK Trade and Investment Programme,6/30/2010,Stand Construction Costs,Marketing Directorate - UK Trade and Investments,ROCKET EXHIBITIONS & EVENTS LTD,133420,"4,779.00"
UK Trade and Investment,UK Trade and Investment Programme,6/30/2010,Stand Construction Costs,Marketing Directorate - UK Trade and Investments,CLEARVIEW IMAGING SERVICES LTD,133417,"2,800.00"
UK Trade and Investment,UK Trade and Investment Programme,6/30/2010,Stand Construction Costs,Marketing Directorate - UK Trade and Investments,CLEARVIEW IMAGING SERVICES LTD,133419,"5,870.00"
UK Trade and Investment,UK Trade and Investment Programme,6/30/2010,Sponsorship,Marketing Directorate - UK Trade and Investments,INSTITUTE OF DIRECTORS,133418,"18,000.00"
UK Trade and Investment,UK Trade and Investment Programme,6/30/2010,Sponsorship,Regional Directorate - UK Trade and Investments,MEDILINK (YORKSHIRE AND HUMBER) LTD,133428,"1,750.00"
UK Trade and Investment,UK Trade and Investment Programme,6/30/2010,Promotional Materials,Marketing Directorate - UK Trade and Investments,HONAV UK LTD,133448,"1,712.23"
UK Trade and Investment,UK Trade and Investment Programme,6/30/2010,Promotional Materials,Marketing Directorate - UK Trade and Investments,AWARE PROMOTIONAL MERCHANDISE LTD,133421,"1,373.90"
UK Trade and Investment,UK Trade and Investment Programme,6/30/2010,Promotional Materials,Marketing Directorate - UK Trade and Investments,AWARE PROMOTIONAL MERCHANDISE LTD,133423,"1,388.85"
UK Trade and Investment,UK Trade and Investment Programme,6/30/2010,Video Production Services,Marketing Directorate - UK Trade and Investments,NEW MOON TELEVISION LTD,133449,"1,500.00"
UK Trade and Investment,UK Trade and Investment Programme,6/30/2010,Online Services charges,Business Group - UK Trade and Investments,OCO GLOBAL LTD,133457,"21,000.00"
UK Trade and Investment,UK Trade and Investment Programme,6/30/2010,Online Services charges,Business Group - UK Trade and Investments,OCO GLOBAL LTD,133457,"5,000.00"
UK Trade and Investment,UK Trade and Investment Programme,6/30/2010,Media and Press Services,International Sectors Group - UK Trade and Investments,RENEWS LTD,133458,"2,643.75"
UK Trade and Investment,UK Trade and Investment Programme,6/30/2010,Scheme Management Charges,Regional Directorate - UK Trade and Investments,NORTH EAST REGIONAL INTERNATIONAL TRADE OFFICE LTD,133424,"2,210.44"
UK Trade and Investment,UK Trade and Investment Programme,6/30/2010,Development Cost - Website (AUC) - Clearing Account,Strategy and Human Resources Group - UK Trade and Investments,MORGAN HUNT PUBLIC SECTOR LTD,133342,893
UK Trade and Investment,UK Trade and Investment Programme,6/30/2010,Basic Grants,International Sectors Group - UK Trade and Investments,BRITISH PIG ASSOCIATION,133431,"5,400.00"
UK Trade and Investment,UK Trade and Investment Programme,6/30/2010,Sponsors Grants,International Sectors Group - UK Trade and Investments,BRITISH PIG ASSOCIATION,133432,"6,580.00"
UK Trade and Investment,UK Trade and Investment Programme,6/30/2010,Basic Grants,International Sectors Group - UK Trade and Investments,BRITISH JEWELLERY AND GIFTWARE FEDERATION,133455,"22,400.00"
UK Trade and Investment,UK Trade and Investment Programme,6/30/2010,Basic Grants,International Sectors Group - UK Trade and Investments,BRITISH MARINE EQUIPMENT ASSOCIATION,133447,"7,000.00"
UK Trade and Investment,UK Trade and Investment Programme,6/30/2010,Basic Grants,International Sectors Group - UK Trade and Investments,BRITISH EQUESTRIAN TRADE ASSOCIATION,133429,"4,000.00"
UK Trade and Investment,UK Trade and Investment Programme,6/30/2010,Sponsors Grants,International Sectors Group - UK Trade and Investments,BRITISH JEWELLERY AND GIFTWARE FEDERATION,133454,"3,760.00"
UK Trade and Investment,UK Trade and Investment Programme,6/30/2010,Sponsors Grants,International Sectors Group - UK Trade and Investments,BRITISH EQUESTRIAN TRADE ASSOCIATION,133430,940
UK Trade and Investment,UK Trade and Investment Programme,6/30/2010,Design Services,Marketing Directorate - UK Trade and Investments,THE TEAM BRAND COMMUNICATION CONSULTANTS LTD,133450,"20,845.00"
